Departmental Area,Entity,Payment Date,Expense Type,Expense Area,Supplier Name,Payment Reference, Invoice Distribution Amount ,Description,Suplier Type,Expenditure Type
UK Statistics Family,Office for National Statistics,01/03/2021,Exp - Purchase Of Goods/Services - Contractors,Programme Support,Parity Resources Limited,196996,"4,192.56",Information Management Services,Large,Programme Expenditure
UK Statistics Family,Office for National Statistics,01/03/2021,Exp - Purchase Of Goods/Services - Contractors,Covid Infection Survey,Parity Resources Limited,196996,"3,000.00",Information Management Services,Large,Programme Expenditure
UK Statistics Family,Office for National Statistics,01/03/2021,Exp - Purchase Of Goods/Services - Contractors,Portfolio Delivery,Parity Resources Limited,196996,"3,412.87",Information Management Services,Large,Programme Expenditure
UK Statistics Family,Office for National Statistics,01/03/2021,Exp - Purchase Of Goods/Services - Contractors,Commercial Services,Parity Resources Limited,196996,"17,077.32",Information Management Services,Large,Programme Expenditure
UK Statistics Family,Office for National Statistics,01/03/2021,Exp - Short-Term Contract & Agency Staff - Full Cost,Recruitment ,Parity Resources Limited,196996,"3,227.40",Information Management Services,Large,Programme Expenditure
UK Statistics Family,Office for National Statistics,01/03/2021,Exp - Short-Term Contract & Agency Staff - Full Cost,Recruitment ,Parity Resources Limited,196996,633.6,Information Management Services,Large,Programme Expenditure
UK Statistics Family,Office for National Statistics,01/03/2021,Exp - Short-Term Contract & Agency Staff - Full Cost,Data Architecture,Parity Resources Limited,196996,732.6,Information Management Services,Large,Programme Expenditure
UK Statistics Family,Office for National Statistics,01/03/2021,Exp - Purchase Of Goods/Services - Contractors,Data Architecture,Parity Resources Limited,196996,"3,592.56",Information Management Services,Large,Programme Expenditure
UK Statistics Family,Office for National Statistics,01/03/2021,Exp - Purchase Of Goods/Services - Contractors,Digital Delivery,Parity Resources Limited,196996,"3,430.50",Information Management Services,Large,Programme Expenditure
UK Statistics Family,Office for National Statistics,01/03/2021,Exp - Purchase Of Goods/Services - Contractors,Digital Delivery,Parity Resources Limited,196996,"5,446.80",Information Management Services,Large,Programme Expenditure
UK Statistics Family,Office for National Statistics,01/03/2021,Exp - Short-Term Contract & Agency Staff - Full Cost,Public Sector And Households,Parity Resources Limited,196996,811.8,Information Management Services,Large,Programme Expenditure
UK Statistics Family,Office for National Statistics,01/03/2021,Exp - Purchase Of Goods/Services - Contractors,Business Architecture,LA FOSSE ASSOCIATES LIMITED,196997,"35,319.94",Information Management Services,Large,Programme Expenditure
UK Statistics Family,Office for National Statistics,01/03/2021,Exp - Purchase Of Goods/Services - Contractors,Business Architecture,LA FOSSE ASSOCIATES LIMITED,196997,"2,750.00",Information Management Services,Large,Programme Expenditure
UK Statistics Family,Office for National Statistics,01/03/2021,Exp - Purchase Of Goods/Services - Contractors,Testing,LA FOSSE ASSOCIATES LIMITED,196997,"3,000.00",Information Management Services,Large,Programme Expenditure
UK Statistics Family,Office for National Statistics,01/03/2021,Exp - Purchase Of Goods/Services - Contractors,Consultancy Management,LA FOSSE ASSOCIATES LIMITED,196997,"9,750.00",Information Management Services,Large,Programme Expenditure
UK Statistics Family,Office for National Statistics,01/03/2021,Exp - Purchase Of Goods/Services - Contractors,Data Architecture,LA FOSSE ASSOCIATES LIMITED,196997,"3,450.00",Information Management Services,Large,Programme Expenditure
UK Statistics Family,Office for National Statistics,01/03/2021,Exp - Purchase Of Goods/Services - Contractors,CLOUD ARCHITECTURE,LA FOSSE ASSOCIATES LIMITED,196997,"14,400.00",Information Management Services,Large,Programme Expenditure
UK Statistics Family,Office for National Statistics,01/03/2021,Exp - Purchase Of Goods/Services - Contractors,Business Statistics Transformation,LA FOSSE ASSOCIATES LIMITED,196997,"3,300.00",Information Management Services,Large,Programme Expenditure
UK Statistics Family,Office for National Statistics,01/03/2021,Marketing & Media,Stakeholder Engagement And Comms,Family & Education / iChild,196998,"133,066.80",Marketing Services,SME,Programme Expenditure
UK Statistics Family,Office for National Statistics,01/03/2021,Telecoms,IT Operations,Bt Global Services,197016,"31,981.38",Telephony Charges,Large,Programme Expenditure
UK Statistics Family,Office for National Statistics,01/03/2021,Training & Development,Learning And Capability,Ernst & Young Llp,197019,"43,491.60",Training and Educational Services,Large,Programme Expenditure
UK Statistics Family,Office for National Statistics,01/03/2021,"ICT Outsourcing, Maintenance And Support",Researcher Support And Data Access ,Equiniti-TopLevel,197028,"40,492.80",Information Management Services,SME,Programme Expenditure
UK Statistics Family,Office for National Statistics,01/03/2021,Telecoms,Tech Delivery Next Gen IT And Infrastructure,Freedom Communications (UK) Ltd,197033,54.6,Information Management Services,Large,Programme Expenditure
UK Statistics Family,Office for National Statistics,01/03/2021,Telecoms,IT Operations,Freedom Communications (UK) Ltd,197033,"29,569.73",Information Management Services,Large,Programme Expenditure
UK Statistics Family,Office for National Statistics,01/03/2021,Survey Incentive Vouchers,Property Services,Gresham Office Furniture Limited,197036,"36,169.20",Office Furniture,SME,Programme Expenditure
UK Statistics Family,Office for National Statistics,02/03/2021,Surveys,Labour Market,University of Durham,197056,"134,437.60",Statistical Services,Large,Programme Expenditure
UK Statistics Family,Office for National Statistics,02/03/2021,IT (Owned) At Cost - Additions,Digital Delivery,Xma Limited,197059,"251,479.20",Costs Associated with Mobile Devices,Large,Programme Expenditure
UK Statistics Family,Office for National Statistics,02/03/2021,Telecoms,Digital Delivery,Xma Limited,197059,"702,598.20",Costs Associated with Mobile Devices,Large,Programme Expenditure
UK Statistics Family,Office for National Statistics,02/03/2021,End User Software And Hardware,Digital Delivery,Xma Limited,197059,"89,331.34",Costs Associated with Mobile Devices,Large,Programme Expenditure
UK Statistics Family,Office for National Statistics,02/03/2021,Travel And Subsistence,CWT Trainline,Calder World of Travel,197060,"57,046.29",Multiple Venue Hire ,SME,Programme Expenditure
UK Statistics Family,Office for National Statistics,02/03/2021,Exp - Purchase Of Goods/Services - Contractors,Tech Delivery Data As A Platform,Certes Computing Ltd,197061,"10,798.92",Information Management Services,SME,Programme Expenditure
UK Statistics Family,Office for National Statistics,02/03/2021,Exp - Purchase Of Goods/Services - Contractors,Digital Delivery,Certes Computing Ltd,197061,"15,819.78",Information Management Services,SME,Programme Expenditure
UK Statistics Family,Office for National Statistics,02/03/2021,Exp - Purchase Of Goods/Services - Contractors,Data Capability,La International,197062,"7,429.68",Information Management Services,SME,Programme Expenditure
UK Statistics Family,Office for National Statistics,02/03/2021,Exp - Purchase Of Goods/Services - Contractors,Sustainability And Inequalities,La International,197062,"2,525.52",Information Management Services,SME,Programme Expenditure
UK Statistics Family,Office for National Statistics,02/03/2021,Exp - Short-Term Contract & Agency Staff - Full Cost,Recruitment ,La International,197062,"1,423.08",Information Management Services,SME,Programme Expenditure
UK Statistics Family,Office for National Statistics,02/03/2021,Exp - Short-Term Contract & Agency Staff - Full Cost,Recruitment ,La International,197062,"2,648.46",Information Management Services,SME,Programme Expenditure
UK Statistics Family,Office for National Statistics,02/03/2021,Exp - Purchase Of Goods/Services - Contractors,Data Architecture,La International,197062,"10,572.72",Information Management Services,SME,Programme Expenditure
UK Statistics Family,Office for National Statistics,02/03/2021,Exp - Short-Term Contract & Agency Staff - Full Cost,Social Survey Transformation Titchfield,La International,197062,995.47,Information Management Services,SME,Programme Expenditure
UK Statistics Family,Office for National Statistics,02/03/2021,End User Software And Hardware,Census CCS Data Collection,Computacenter (Uk) Limited,197064,"157,500.00",Information Management Services,Large,Programme Expenditure
UK Statistics Family,Office for National Statistics,02/03/2021,Other Goods And Services,Programme Other,Cabinet Office,197066,"11,348.10",Recruitment Campaign ,Large,Programme Expenditure
UK Statistics Family,Office for National Statistics,02/03/2021,Other Goods And Services,Recruitment ,Cabinet Office,197066,700.8,Fast Stream Recruitment,Large,Programme Expenditure
UK Statistics Family,Office for National Statistics,02/03/2021,Recovery Of Secondee Costs,FAST STREAM RECHARGES - CABINET OFFICE,Cabinet Office,197066,"13,885.88",Fast Stream Recruitment,Large,Programme Expenditure
UK Statistics Family,Office for National Statistics,02/03/2021,Exp - Purchase Of Goods And Services Consultants,Consultancy Management,Bloom Procurement Services Ltd,197073,"317,474.91",Consultancy,Large,Programme Expenditure
UK Statistics Family,Office for National Statistics,02/03/2021,Non IT Maintenance And Hire,Digital Delivery,Hewlett Packard International Bank DAC,197079,"1,998,667.87",Leasing of Devices,SME,Programme Expenditure
UK Statistics Family,Office for National Statistics,03/03/2021,Stationery,Stakeholder Engagement And Comms,Banner Group Ltd,197204,"38,510.40",Stationery,SME,Programme Expenditure
UK Statistics Family,Office for National Statistics,03/03/2021,Exp - Permanent UK Staff - PRP Voucher Payments,ONS Corporate Funds,Edenred (UK Group) Limited,197207,"57,950.00",Performance Reward Vouchers,Large,Programme Expenditure
UK Statistics Family,Office for National Statistics,03/03/2021,Exp - Purchase Of Goods/Services - IT Contractual Services,Strategy And Architecture,Empiric Solutions Limited,197209,"30,420.00",Information Management Services,Large,Programme Expenditure
UK Statistics Family,Office for National Statistics,03/03/2021,"ICT Outsourcing, Maintenance And Support",Researcher Support And Data Access ,Equiniti Limited,197212,"17,045.14",Information Management Services,Large,Programme Expenditure
UK Statistics Family,Office for National Statistics,03/03/2021,"ICT Outsourcing, Maintenance And Support",Researcher Support And Data Access ,Equiniti Limited,197212,"28,757.44",Information Management Services,Large,Programme Expenditure
UK Statistics Family,Office for National Statistics,03/03/2021,"ICT Outsourcing, Maintenance And Support",Researcher Support And Data Access ,Equiniti Limited,197212,"132,427.26",Information Management Services,Large,Programme Expenditure
UK Statistics Family,Office for National Statistics,03/03/2021,"ICT Outsourcing, Maintenance And Support",IT Operations,Equiniti Limited,197212,"57,287.60",Information Management Services,Large,Programme Expenditure
UK Statistics Family,Office for National Statistics,03/03/2021,Hosting,IT Operations,Equiniti Limited,197212,"98,918.10",Information Management Services,Large,Programme Expenditure
UK Statistics Family,Office for National Statistics,03/03/2021,Exp - Purchase Of Goods/Services - IT Contractual Services,Strategy And Architecture,Medley Business Solutions Ltd,197214,"30,412.80",Information Management Services,Large,Programme Expenditure
UK Statistics Family,Office for National Statistics,03/03/2021,EXP - PURCHASE OF GOODS/SERVICES -  NON IT CONTRACTUAL PAYMENTS,Data Collection Service,Good Things Foundation,197225,"454,304.40",Census Assisted Digital Services,SME,Programme Expenditure
UK Statistics Family,Office for National Statistics,03/03/2021,Marketing & Media,Stakeholder Engagement And Comms,M&C Saatchi UK Ltd,197233,"487,689.47",Marketing Services,Large,Programme Expenditure
UK Statistics Family,Office for National Statistics,04/03/2021,Exp - Purchase Of Goods/Services - Contractors,Data Architecture,Empiric Solutions Limited,197236,"17,400.00",Information Management Services,Large,Programme Expenditure
UK Statistics Family,Office for National Statistics,04/03/2021,Exp - Purchase Of Goods/Services - IT Contractual Services,Strategy And Architecture,Empiric Solutions Limited,197236,"14,040.00",Information Management Services,Large,Programme Expenditure
UK Statistics Family,Office for National Statistics,04/03/2021,End User Software And Hardware,Operations,Softcat,197237,"36,726.12",Software Licenses,SME,Programme Expenditure
UK Statistics Family,Office for National Statistics,04/03/2021,Postage,Survey Processing Centre,DHL Parcel Ltd,197238,"38,614.83",Courier Services,Large,Programme Expenditure
UK Statistics Family,Office for National Statistics,04/03/2021,Exp - Purchase Of Goods And Services Consultants,Productivity Research And Professional Development,Niesr,197239,"322,078.80",Statistical Services,SME,Programme Expenditure
UK Statistics Family,Office for National Statistics,04/03/2021,Exp - Purchase Of Goods/Services - Contractors,Programme Delivery,Certes Computing Ltd,197240,"10,888.09",Information Management Services,SME,Programme Expenditure
UK Statistics Family,Office for National Statistics,04/03/2021,Exp - Purchase Of Goods/Services - Contractors,Programme Delivery,Certes Computing Ltd,197240,"12,810.00",Information Management Services,SME,Programme Expenditure
UK Statistics Family,Office for National Statistics,04/03/2021,Exp - Purchase Of Goods/Services - Contractors,Data Architecture,Certes Computing Ltd,197240,"28,797.12",Information Management Services,SME,Programme Expenditure
UK Statistics Family,Office for National Statistics,04/03/2021,Exp - Purchase Of Goods/Services - Contractors,Strategy And Architecture,Certes Computing Ltd,197240,"32,024.40",Information Management Services,SME,Programme Expenditure
UK Statistics Family,Office for National Statistics,04/03/2021,Exp - Purchase Of Goods/Services - Contractors,Digital Delivery,Certes Computing Ltd,197240,"12,169.20",Information Management Services,SME,Programme Expenditure
UK Statistics Family,Office for National Statistics,04/03/2021,Exp - Purchase Of Goods/Services - Contractors,Business Architecture,La International,197241,"7,855.44",Information Management Services,SME,Programme Expenditure
UK Statistics Family,Office for National Statistics,04/03/2021,Exp - Purchase Of Goods/Services - Contractors,Testing,La International,197241,"22,907.46",Information Management Services,SME,Programme Expenditure
UK Statistics Family,Office for National Statistics,04/03/2021,Exp - Purchase Of Goods/Services - Contractors,Testing,La International,197241,"2,269.40",Information Management Services,SME,Programme Expenditure
UK Statistics Family,Office for National Statistics,04/03/2021,Exp - Short-Term Contract & Agency Staff - Full Cost,Census CCS Data Collection,La International,197241,992.34,Information Management Services,SME,Programme Expenditure
UK Statistics Family,Office for National Statistics,04/03/2021,Exp - Short-Term Contract & Agency Staff - Full Cost,Recruitment ,La International,197241,785.88,Information Management Services,SME,Programme Expenditure
UK Statistics Family,Office for National Statistics,04/03/2021,Exp - Short-Term Contract & Agency Staff - Full Cost,Recruitment ,La International,197241,"1,765.64",Information Management Services,SME,Programme Expenditure
UK Statistics Family,Office for National Statistics,04/03/2021,Exp - Purchase Of Goods/Services - Contractors,Data Architecture,La International,197241,"3,203.88",Information Management Services,SME,Programme Expenditure
UK Statistics Family,Office for National Statistics,04/03/2021,Exp - Purchase Of Goods/Services - Contractors,Tech Delivery Data As A Platform,La International,197241,"7,176.60",Information Management Services,SME,Programme Expenditure
UK Statistics Family,Office for National Statistics,04/03/2021,Exp - Purchase Of Goods/Services - Contractors,Tech Delivery Data As A Platform,La International,197241,"14,353.20",Information Management Services,SME,Programme Expenditure
UK Statistics Family,Office for National Statistics,04/03/2021,Exp - Purchase Of Goods/Services - Contractors,Digital Delivery,La International,197241,"10,764.90",Information Management Services,SME,Programme Expenditure
UK Statistics Family,Office for National Statistics,04/03/2021,Training & Development,Learning And Capability,Ernst & Young Llp,197242,"59,760.00",Training and Educational Services,Large,Programme Expenditure
UK Statistics Family,Office for National Statistics,04/03/2021,Exp - Purchase Of Goods/Services - Training & Development - Seminar & Conference Fees,Learning And Capability,Beam development & training,197246,"26,700.00",Training and Educational Services,Large,Programme Expenditure
UK Statistics Family,Office for National Statistics,04/03/2021,Exp - Purchase Of Goods/Services - Contractors,Programme Support,Malikshaw Interim & Executive,197248,"12,204.16",Information Management Services,SME,Programme Expenditure
UK Statistics Family,Office for National Statistics,04/03/2021,Exp - Purchase Of Goods/Services - Contractors,CLOUD ARCHITECTURE,Malikshaw Interim & Executive,197248,"29,858.40",Information Management Services,SME,Programme Expenditure
UK Statistics Family,Office for National Statistics,04/03/2021,Exp - Purchase Of Goods/Services - Contractors,Strategy And Architecture,Malikshaw Interim & Executive,197248,"34,378.80",Information Management Services,SME,Programme Expenditure
UK Statistics Family,Office for National Statistics,04/03/2021,Exp - Purchase Of Goods/Services - Contractors,Tech Delivery Legacy Sp,Malikshaw Interim & Executive,197248,"13,751.52",Information Management Services,SME,Programme Expenditure
UK Statistics Family,Office for National Statistics,04/03/2021,EXP - PURCHASE OF GOODS/SERVICES -  NON IT CONTRACTUAL PAYMENTS,Data Collection Service,Leidos Innovations UK Limited,197249,"2,394,685.69",Questionnaire Management,Large,Programme Expenditure
UK Statistics Family,Office for National Statistics,04/03/2021,Exp - Purchase Of Goods And Services Consultants,Productivity Research And Professional Development,Frontier Economics,197258,"54,900.00",Statistical Services,SME,Programme Expenditure
UK Statistics Family,Office for National Statistics,05/03/2021,Exp - Purchase Of Goods/Services - Incentive Payments,Social Survey Transformation Newport,P & Mm Ltd,197265,"465,768.00",Survey Response Incentive Vouchers,Large,Programme Expenditure
UK Statistics Family,Office for National Statistics,05/03/2021,Exp - Purchase Of Goods/Services - Incentive Payments,Survey Management,P & Mm Ltd,197265,"4,257.20",Survey Response Incentive Vouchers,Large,Programme Expenditure
UK Statistics Family,Office for National Statistics,05/03/2021,Exp - Purchase Of Goods/Services - Incentive Payments,Survey Management,P & Mm Ltd,197265,"28,779.20",Survey Response Incentive Vouchers,Large,Programme Expenditure
UK Statistics Family,Office for National Statistics,05/03/2021,Exp - Purchase Of Goods/Services - Incentive Payments,Survey Management,P & Mm Ltd,197265,"6,390.60",Survey Response Incentive Vouchers,Large,Programme Expenditure
UK Statistics Family,Office for National Statistics,05/03/2021,Exp - Purchase Of Goods/Services - Incentive Payments,Survey Management,P & Mm Ltd,197265,"6,073.80",Survey Response Incentive Vouchers,Large,Programme Expenditure
UK Statistics Family,Office for National Statistics,05/03/2021,Exp - Purchase Of Goods/Services - Incentive Payments,Survey Management,P & Mm Ltd,197265,"223,925.40",Survey Response Incentive Vouchers,Large,Programme Expenditure
UK Statistics Family,Office for National Statistics,05/03/2021,End User Software And Hardware,IT Operations,Phoenix Software Ltd,197270,"65,460.00",Software Licenses,SME,Programme Expenditure
UK Statistics Family,Office for National Statistics,05/03/2021,Other Goods And Services,Social Survey Transformation Newport,APS Group,197274,"516,521.05",Mailing Services,Large,Programme Expenditure
UK Statistics Family,Office for National Statistics,05/03/2021,Other Goods And Services,Social Survey Transformation Newport,APS Group,197274,"32,624.90",Mailing Services,Large,Programme Expenditure
UK Statistics Family,Office for National Statistics,05/03/2021,Exp - Purchase Of Goods/Services - Contractors,Testing,Malikshaw Interim & Executive,197278,"49,200.00",Information Management Services,SME,Programme Expenditure
UK Statistics Family,Office for National Statistics,05/03/2021,Exp - Short-Term Contract & Agency Staff - Full Cost,Census CCS Data Collection,Malikshaw Interim & Executive,197278,396,Information Management Services,SME,Programme Expenditure
UK Statistics Family,Office for National Statistics,05/03/2021,Exp - Short-Term Contract & Agency Staff - Full Cost,Census CCS Data Collection,Malikshaw Interim & Executive,197278,"43,968.21",Information Management Services,SME,Programme Expenditure
UK Statistics Family,Office for National Statistics,05/03/2021,Exp - Short-Term Contract & Agency Staff - Full Cost,Census CCS Data Collection,Malikshaw Interim & Executive,197278,"7,637.86",Information Management Services,SME,Programme Expenditure
UK Statistics Family,Office for National Statistics,05/03/2021,Exp - Short-Term Contract & Agency Staff - Full Cost,International Trade And Transactions,Malikshaw Interim & Executive,197278,"4,237.54",Information Management Services,SME,Programme Expenditure
UK Statistics Family,Office for National Statistics,05/03/2021,Exp - Short-Term Contract & Agency Staff - Full Cost,Data Architecture,Malikshaw Interim & Executive,197278,"11,721.60",Information Management Services,SME,Programme Expenditure
UK Statistics Family,Office for National Statistics,05/03/2021,EXP - PURCHASE OF GOODS/SERVICES -  NON IT CONTRACTUAL PAYMENTS,Divisional Management,Family & Education / iChild,197282,"63,540.00",Marketing Services,SME,Programme Expenditure
UK Statistics Family,Office for National Statistics,08/03/2021,Hosting,IT Operations,Crown Hosting Data Centres Limited,197355,"86,787.38",Information Management Services,SME,Programme Expenditure
UK Statistics Family,Office for National Statistics,08/03/2021,Exp - Purchase Of Goods/Services - Contractors,Testing,Certes Computing Ltd,197356,"25,577.08",Information Management Services,SME,Programme Expenditure
UK Statistics Family,Office for National Statistics,08/03/2021,Exp - Purchase Of Goods/Services - Contractors,Security Advisory,Certes Computing Ltd,197356,"16,653.12",Information Management Services,SME,Programme Expenditure
UK Statistics Family,Office for National Statistics,08/03/2021,Exp - Purchase Of Goods/Services - Contractors,Security Advisory,Certes Computing Ltd,197356,"16,653.12",Information Management Services,SME,Programme Expenditure
UK Statistics Family,Office for National Statistics,08/03/2021,Exp - Purchase Of Goods/Services - Contractors,Security Advisory,Certes Computing Ltd,197356,"13,877.00",Information Management Services,SME,Programme Expenditure
UK Statistics Family,Office for National Statistics,08/03/2021,Exp - Purchase Of Goods/Services - Contractors,Strategy And Architecture,Certes Computing Ltd,197356,"6,479.35",Information Management Services,SME,Programme Expenditure
UK Statistics Family,Office for National Statistics,08/03/2021,Exp - Purchase Of Goods/Services - Contractors,Strategy And Architecture,Certes Computing Ltd,197356,"12,960.00",Information Management Services,SME,Programme Expenditure
UK Statistics Family,Office for National Statistics,08/03/2021,Exp - Purchase Of Goods/Services - Contractors,Tech Delivery Legacy Sp,Certes Computing Ltd,197356,"14,091.12",Information Management Services,SME,Programme Expenditure
UK Statistics Family,Office for National Statistics,08/03/2021,Exp - Purchase Of Goods/Services - Contractors,Tech Delivery Legacy Sp,Certes Computing Ltd,197356,"19,983.72",Information Management Services,SME,Programme Expenditure
UK Statistics Family,Office for National Statistics,08/03/2021,Exp - Purchase Of Goods/Services - Contractors,Tech Delivery Data As A Platform,Certes Computing Ltd,197356,"8,006.28",Information Management Services,SME,Programme Expenditure
UK Statistics Family,Office for National Statistics,08/03/2021,Exp - Purchase Of Goods/Services - Contractors,IT Applications,Certes Computing Ltd,197356,"28,489.68",Information Management Services,SME,Programme Expenditure
UK Statistics Family,Office for National Statistics,08/03/2021,Exp - Purchase Of Goods/Services - Contractors,Digital Delivery,Certes Computing Ltd,197356,"5,760.00",Information Management Services,SME,Programme Expenditure
UK Statistics Family,Office for National Statistics,08/03/2021,Exp - Purchase Of Goods/Services - Contractors,Digital Delivery,Certes Computing Ltd,197356,"14,091.12",Information Management Services,SME,Programme Expenditure
UK Statistics Family,Office for National Statistics,08/03/2021,Exp - Purchase Of Goods/Services - Contractors,Digital Delivery,Certes Computing Ltd,197356,"11,477.76",Information Management Services,SME,Programme Expenditure
UK Statistics Family,Office for National Statistics,08/03/2021,Exp - Purchase Of Goods/Services - Contractors,Digital Delivery,Certes Computing Ltd,197356,"14,091.12",Information Management Services,SME,Programme Expenditure
UK Statistics Family,Office for National Statistics,08/03/2021,Exp - Purchase Of Goods/Services - Contractors,Tech Delivery Legacy Sp,La International,197357,"17,941.68",Information Management Services,SME,Programme Expenditure
UK Statistics Family,Office for National Statistics,08/03/2021,Exp - Purchase Of Goods/Services - Contractors,IT Applications,La International,197357,"1,730.09",Information Management Services,SME,Programme Expenditure
UK Statistics Family,Office for National Statistics,08/03/2021,Exp - Purchase Of Goods/Services - Contractors,Digital Delivery,La International,197357,"9,688.42",Information Management Services,SME,Programme Expenditure
UK Statistics Family,Office for National Statistics,08/03/2021,Exp - Purchase Of Goods/Services - Contractors,Business Architecture,Talent International,197363,"19,977.50",Information Management Services,SME,Programme Expenditure
UK Statistics Family,Office for National Statistics,08/03/2021,Exp - Short-Term Contract & Agency Staff - Full Cost,Census CCS Data Collection,Talent International,197363,"11,694.88",Information Management Services,SME,Programme Expenditure
UK Statistics Family,Office for National Statistics,08/03/2021,Exp - Short-Term Contract & Agency Staff - Full Cost,Census CCS Data Collection,Talent International,197363,"3,258.88",Information Management Services,SME,Programme Expenditure
UK Statistics Family,Office for National Statistics,08/03/2021,Exp - Purchase Of Goods/Services - Contractors,Consultancy Management,Talent International,197363,"9,887.50",Information Management Services,SME,Programme Expenditure
UK Statistics Family,Office for National Statistics,08/03/2021,Exp - Purchase Of Goods/Services - Contractors,Programme Support,Talent International,197363,"11,000.00",Information Management Services,SME,Programme Expenditure
UK Statistics Family,Office for National Statistics,08/03/2021,Exp - Purchase Of Goods/Services - Contractors,Researcher Support And Data Access ,Talent International,197363,"15,600.00",Information Management Services,SME,Programme Expenditure
UK Statistics Family,Office for National Statistics,08/03/2021,Exp - Purchase Of Goods/Services - Contractors,MDR Management,Talent International,197363,"13,000.00",Information Management Services,SME,Programme Expenditure
UK Statistics Family,Office for National Statistics,08/03/2021,Exp - Short-Term Contract & Agency Staff - Full Cost,Data Architecture,Talent International,197363,"4,353.13",Information Management Services,SME,Programme Expenditure
UK Statistics Family,Office for National Statistics,08/03/2021,Exp - Short-Term Contract & Agency Staff - Full Cost,Data Architecture,Talent International,197363,737.48,Information Management Services,SME,Programme Expenditure
UK Statistics Family,Office for National Statistics,08/03/2021,Exp - Purchase Of Goods/Services - Contractors,Data Architecture,Talent International,197363,"53,142.00",Information Management Services,SME,Programme Expenditure
UK Statistics Family,Office for National Statistics,08/03/2021,Exp - Purchase Of Goods/Services - Contractors,Data Architecture,Talent International,197363,"16,080.00",Information Management Services,SME,Programme Expenditure
UK Statistics Family,Office for National Statistics,08/03/2021,Exp - Purchase Of Goods/Services - Contractors,CLOUD ARCHITECTURE,Talent International,197363,"14,820.00",Information Management Services,SME,Programme Expenditure
UK Statistics Family,Office for National Statistics,08/03/2021,Exp - Purchase Of Goods/Services - Contractors,CDIO UNGP,Talent International,197363,"29,609.76",Information Management Services,SME,Programme Expenditure
UK Statistics Family,Office for National Statistics,08/03/2021,Exp - Purchase Of Goods/Services - Contractors,Strategy And Architecture,Talent International,197363,"12,000.00",Information Management Services,SME,Programme Expenditure
UK Statistics Family,Office for National Statistics,08/03/2021,Exp - Purchase Of Goods/Services - Contractors,Tech Delivery Legacy Sp,Talent International,197363,"14,399.76",Information Management Services,SME,Programme Expenditure
UK Statistics Family,Office for National Statistics,08/03/2021,Exp - Purchase Of Goods/Services - Contractors,Tech Delivery Legacy Sp,Talent International,197363,"15,600.00",Information Management Services,SME,Programme Expenditure
UK Statistics Family,Office for National Statistics,08/03/2021,Exp - Purchase Of Goods/Services - Contractors,Tech Delivery Data As A Platform,Talent International,197363,"14,399.76",Information Management Services,SME,Programme Expenditure
UK Statistics Family,Office for National Statistics,08/03/2021,Exp - Purchase Of Goods/Services - Contractors,Tech Delivery Next Gen IT And Infrastructure,Talent International,197363,"13,679.77",Information Management Services,SME,Programme Expenditure
UK Statistics Family,Office for National Statistics,08/03/2021,Exp - Purchase Of Goods/Services - Contractors,IT Applications,Talent International,197363,"14,399.76",Information Management Services,SME,Programme Expenditure
UK Statistics Family,Office for National Statistics,08/03/2021,Exp - Purchase Of Goods/Services - Contractors,Digital Delivery,Talent International,197363,"12,096.00",Information Management Services,SME,Programme Expenditure
UK Statistics Family,Office for National Statistics,08/03/2021,Exp - Short-Term Contract & Agency Staff - Full Cost,Labour Market,Talent International,197363,"4,237.54",Information Management Services,SME,Programme Expenditure
UK Statistics Family,Office for National Statistics,09/03/2021,Exp - Purchase Of Goods/Services - IT Contractual Services,International Trade And Transactions,Mango Solutions,197402,"16,320.00",Information Management Services,SME,Programme Expenditure
UK Statistics Family,Office for National Statistics,09/03/2021,Exp - Purchase Of Goods/Services - IT Contractual Services,International Trade And Transactions,Mango Solutions,197402,"46,185.60",Information Management Services,SME,Programme Expenditure
UK Statistics Family,Office for National Statistics,09/03/2021,Exp - Purchase Of Goods/Services - Contractors,Testing,Concept Information Technology Ltd T/A Concept Resourcing,197403,"13,032.79",Information Management Services,Large,Programme Expenditure
UK Statistics Family,Office for National Statistics,09/03/2021,Exp - Purchase Of Goods/Services - Contractors,Testing,Concept Information Technology Ltd T/A Concept Resourcing,197403,"11,000.00",Information Management Services,Large,Programme Expenditure
UK Statistics Family,Office for National Statistics,09/03/2021,Exp - Short-Term Contract & Agency Staff - Full Cost,Census CCS Data Collection,Concept Information Technology Ltd T/A Concept Resourcing,197403,"4,276.08",Information Management Services,Large,Programme Expenditure
UK Statistics Family,Office for National Statistics,09/03/2021,Exp - Short-Term Contract & Agency Staff - Full Cost,Census CCS Data Collection,Concept Information Technology Ltd T/A Concept Resourcing,197403,"4,507.19",Information Management Services,Large,Programme Expenditure
UK Statistics Family,Office for National Statistics,09/03/2021,Exp - Short-Term Contract & Agency Staff - Full Cost,Data Architecture,Concept Information Technology Ltd T/A Concept Resourcing,197403,"5,899.88",Information Management Services,Large,Programme Expenditure
UK Statistics Family,Office for National Statistics,09/03/2021,Exp - Purchase Of Goods/Services - Contractors,Data Architecture,Concept Information Technology Ltd T/A Concept Resourcing,197403,"7,200.00",Information Management Services,Large,Programme Expenditure
UK Statistics Family,Office for National Statistics,09/03/2021,Exp - Purchase Of Goods/Services - Contractors,CLOUD ARCHITECTURE,Concept Information Technology Ltd T/A Concept Resourcing,197403,"12,720.00",Information Management Services,Large,Programme Expenditure
UK Statistics Family,Office for National Statistics,09/03/2021,Exp - Purchase Of Goods/Services - IT Contractual Services,Tech Delivery Legacy Sp,Concept Information Technology Ltd T/A Concept Resourcing,197403,"9,000.00",Information Management Services,Large,Programme Expenditure
UK Statistics Family,Office for National Statistics,09/03/2021,Exp - Short-Term Contract & Agency Staff - Full Cost,Interviewer Management TU,Concept Information Technology Ltd T/A Concept Resourcing,197403,"1,222.33",Information Management Services,Large,Programme Expenditure
UK Statistics Family,Office for National Statistics,09/03/2021,Exp - Short-Term Contract & Agency Staff - Full Cost,Prices Division,Concept Information Technology Ltd T/A Concept Resourcing,197403,"4,029.74",Information Management Services,Large,Programme Expenditure
UK Statistics Family,Office for National Statistics,09/03/2021,Exp - Short-Term Contract & Agency Staff - Full Cost,Prices Division,Concept Information Technology Ltd T/A Concept Resourcing,197403,"4,029.74",Information Management Services,Large,Programme Expenditure
UK Statistics Family,Office for National Statistics,09/03/2021,Exp - Short-Term Contract & Agency Staff - Full Cost,Prices Division,Concept Information Technology Ltd T/A Concept Resourcing,197403,"9,953.19",Information Management Services,Large,Programme Expenditure
UK Statistics Family,Office for National Statistics,09/03/2021,Exp - Short-Term Contract & Agency Staff - Full Cost,Labour Market,Concept Information Technology Ltd T/A Concept Resourcing,197403,"1,474.97",Information Management Services,Large,Programme Expenditure
UK Statistics Family,Office for National Statistics,09/03/2021,Exp - Purchase Of Goods And Services Consultants,Digital Delivery,Xma Limited,197410,"6,356.40",Costs Associated with Mobile Devices,Large,Programme Expenditure
UK Statistics Family,Office for National Statistics,09/03/2021,Postage,Digital Delivery,Xma Limited,197410,"27,844.80",Costs Associated with Mobile Devices,Large,Programme Expenditure
UK Statistics Family,Office for National Statistics,09/03/2021,Exp - Purchase Of Goods/Services - IT Contractual Services,Digital Delivery,Xma Limited,197410,"122,083.20",Costs Associated with Mobile Devices,Large,Programme Expenditure
UK Statistics Family,Office for National Statistics,09/03/2021,Exp - Purchase Of Goods/Services - Contractors,Testing,Certes Computing Ltd,197415,"12,382.92",Information Management Services,SME,Programme Expenditure
UK Statistics Family,Office for National Statistics,09/03/2021,Exp - Purchase Of Goods/Services - Contractors,Commercial Services,Certes Computing Ltd,197415,"10,674.60",Information Management Services,SME,Programme Expenditure
UK Statistics Family,Office for National Statistics,09/03/2021,Exp - Purchase Of Goods/Services - Contractors,Strategy And Architecture,Certes Computing Ltd,197415,"15,372.00",Information Management Services,SME,Programme Expenditure
UK Statistics Family,Office for National Statistics,09/03/2021,Exp - Purchase Of Goods/Services - Contractors,Strategy And Architecture,Certes Computing Ltd,197415,"14,398.56",Information Management Services,SME,Programme Expenditure
UK Statistics Family,Office for National Statistics,09/03/2021,Exp - Purchase Of Goods/Services - Contractors,Tech Delivery Legacy Sp,Certes Computing Ltd,197415,"14,398.56",Information Management Services,SME,Programme Expenditure
UK Statistics Family,Office for National Statistics,09/03/2021,Exp - Purchase Of Goods/Services - Contractors,Tech Delivery Data As A Platform,Certes Computing Ltd,197415,"13,450.56",Information Management Services,SME,Programme Expenditure
UK Statistics Family,Office for National Statistics,09/03/2021,Exp - Purchase Of Goods/Services - Contractors,Digital Delivery,Certes Computing Ltd,197415,"13,678.63",Information Management Services,SME,Programme Expenditure
UK Statistics Family,Office for National Statistics,09/03/2021,Exp - Short-Term Contract & Agency Staff - Full Cost,Census CCS Data Collection,Malikshaw Interim & Executive,197422,"1,378.00",Information Management Services,SME,Programme Expenditure
UK Statistics Family,Office for National Statistics,09/03/2021,Exp - Purchase Of Goods/Services - Contractors,IT Applications,Malikshaw Interim & Executive,197422,"14,400.00",Information Management Services,SME,Programme Expenditure
UK Statistics Family,Office for National Statistics,09/03/2021,Exp - Purchase Of Goods/Services - Contractors,Digital Delivery,Malikshaw Interim & Executive,197422,"13,751.52",Information Management Services,SME,Programme Expenditure
UK Statistics Family,Office for National Statistics,09/03/2021,Exp - Short-Term Contract & Agency Staff - Full Cost,Survey Management,Malikshaw Interim & Executive,197422,"3,227.00",Information Management Services,SME,Programme Expenditure
UK Statistics Family,Office for National Statistics,09/03/2021,EXP - PURCHASE OF GOODS/SERVICES -  NON IT CONTRACTUAL PAYMENTS,Data Collection Service,Good Things Foundation,197426,"844,504.40",Census Assisted Digital Services,SME,Programme Expenditure
UK Statistics Family,Office for National Statistics,09/03/2021,Exp - Short-Term Contract & Agency Staff - Full Cost,Census CCS Data Collection,Talent International,197428,"3,957.00",Information Management Services,SME,Programme Expenditure
UK Statistics Family,Office for National Statistics,09/03/2021,Exp - Short-Term Contract & Agency Staff - Full Cost,Census CCS Data Collection,Talent International,197428,39.86,Information Management Services,SME,Programme Expenditure
UK Statistics Family,Office for National Statistics,09/03/2021,Exp - Purchase Of Goods/Services - Contractors,Strategy And Architecture,Talent International,197428,"14,376.00",Information Management Services,SME,Programme Expenditure
UK Statistics Family,Office for National Statistics,09/03/2021,Exp - Short-Term Contract & Agency Staff - Full Cost,Interviewer Management TU,Talent International,197428,"6,964.58",Information Management Services,SME,Programme Expenditure
UK Statistics Family,Office for National Statistics,10/03/2021,Exp - Short-Term Contract & Agency Staff - Full Cost,Data Architecture,Concept Information Technology Ltd T/A Concept Resourcing,197434,"5,899.88",Information Management Services,Large,Programme Expenditure
UK Statistics Family,Office for National Statistics,10/03/2021,Exp - Purchase Of Goods/Services - Contractors,Data Architecture,Concept Information Technology Ltd T/A Concept Resourcing,197434,"14,160.00",Information Management Services,Large,Programme Expenditure
UK Statistics Family,Office for National Statistics,10/03/2021,Exp - Short-Term Contract & Agency Staff - Full Cost,Prices Division,Concept Information Technology Ltd T/A Concept Resourcing,197434,"4,029.47",Information Management Services,Large,Programme Expenditure
UK Statistics Family,Office for National Statistics,10/03/2021,Exp - Short-Term Contract & Agency Staff - Full Cost,Prices Division,Concept Information Technology Ltd T/A Concept Resourcing,197434,"2,013.78",Information Management Services,Large,Programme Expenditure
UK Statistics Family,Office for National Statistics,10/03/2021,Exp - Short-Term Contract & Agency Staff - Full Cost,Prices Division,Concept Information Technology Ltd T/A Concept Resourcing,197434,"9,502.57",Information Management Services,Large,Programme Expenditure
UK Statistics Family,Office for National Statistics,10/03/2021,Exp - Purchase Of Goods/Services - Contractors,Tech Delivery Legacy Sp,Certes Computing Ltd,197437,"11,878.81",Information Management Services,SME,Programme Expenditure
UK Statistics Family,Office for National Statistics,10/03/2021,Exp - Purchase Of Goods/Services - Contractors ,IT Operations,Certes Computing Ltd,197437,525.6,Information Management Services,SME,Programme Expenditure
UK Statistics Family,Office for National Statistics,10/03/2021,Exp - Purchase Of Goods/Services - Contractors,Digital Delivery,Certes Computing Ltd,197437,"6,084.60",Information Management Services,SME,Programme Expenditure
UK Statistics Family,Office for National Statistics,10/03/2021,Exp - Purchase Of Goods/Services - Contractors,Digital Delivery,Certes Computing Ltd,197437,"14,091.12",Information Management Services,SME,Programme Expenditure
UK Statistics Family,Office for National Statistics,10/03/2021,Exp - Purchase Of Goods And Services Consultants,Consultancy Management,Deloitte,197439,"133,377.60",Consultancy,Large,Programme Expenditure
UK Statistics Family,Office for National Statistics,10/03/2021,Exp - Purchase Of Goods/Services - IT Contractual Services,IT Operations,CTS (Cloud Technology Solutions Ltd),197443,"140,204.40",DST Infrastructure Preparation,Large,Programme Expenditure
UK Statistics Family,Office for National Statistics,10/03/2021,Exp - Purchase Of Goods/Services - Contractors,Census Planning And Monitoring,SmartSourcing Ltd,197449,"14,400.00",Information Management Services,SME,Programme Expenditure
UK Statistics Family,Office for National Statistics,10/03/2021,Exp - Purchase Of Goods/Services - Contractors,Data Architecture,SmartSourcing Ltd,197449,"29,280.00",Information Management Services,SME,Programme Expenditure
UK Statistics Family,Office for National Statistics,10/03/2021,Exp - Purchase Of Goods/Services - IT Contractual Services,CLOUD ARCHITECTURE,SmartSourcing Ltd,197449,"9,709.92",Information Management Services,SME,Programme Expenditure
UK Statistics Family,Office for National Statistics,10/03/2021,Exp - Purchase Of Goods/Services - Contractors,Strategy And Architecture,SmartSourcing Ltd,197449,"8,091.60",Information Management Services,SME,Programme Expenditure
UK Statistics Family,Office for National Statistics,10/03/2021,Exp - Purchase Of Goods/Services - Contractors,Tech Delivery Data As A Platform,SmartSourcing Ltd,197449,"3,600.00",Information Management Services,SME,Programme Expenditure
UK Statistics Family,Office for National Statistics,10/03/2021,Exp - Purchase Of Goods/Services - Contractors,IT Applications,SmartSourcing Ltd,197449,"3,596.16",Information Management Services,SME,Programme Expenditure
UK Statistics Family,Office for National Statistics,10/03/2021,Exp - Purchase Of Goods/Services - IT Contractual Services,Office Of Chief Data And Information,Akamai Technologies Limited,197450,"36,200.00",Information Management Services,SME,Programme Expenditure
UK Statistics Family,Office for National Statistics,11/03/2021,FM Contract Payments,FM Payments,Vinci Construction UK Limited,197583,"314,777.98",Facilities Mangement Services,Large,Programme Expenditure
UK Statistics Family,Office for National Statistics,11/03/2021,Exp - Purchase Of Goods/Services - Contractors,Security Advisory,Certes Computing Ltd,197587,"13,930.97",Information Management Services,SME,Programme Expenditure
UK Statistics Family,Office for National Statistics,11/03/2021,Exp - Purchase Of Goods/Services - Contractors,Data Architecture,Certes Computing Ltd,197587,"16,140.72",Information Management Services,SME,Programme Expenditure
UK Statistics Family,Office for National Statistics,11/03/2021,Exp - Purchase Of Goods/Services - Contractors,Business Architecture,La International,197588,"6,237.17",Information Management Services,SME,Programme Expenditure
UK Statistics Family,Office for National Statistics,11/03/2021,Exp - Purchase Of Goods/Services - Contractors,Testing,La International,197588,"29,955.90",Information Management Services,SME,Programme Expenditure
UK Statistics Family,Office for National Statistics,11/03/2021,Exp - Purchase Of Goods/Services - Contractors,Testing,La International,197588,"2,269.40",Information Management Services,SME,Programme Expenditure
UK Statistics Family,Office for National Statistics,11/03/2021,Exp - Short-Term Contract & Agency Staff - Full Cost,Census CCS Data Collection,La International,197588,992.34,Information Management Services,SME,Programme Expenditure
UK Statistics Family,Office for National Statistics,11/03/2021,Exp - Short-Term Contract & Agency Staff - Full Cost,Recruitment ,La International,197588,882.82,Information Management Services,SME,Programme Expenditure
UK Statistics Family,Office for National Statistics,11/03/2021,Exp - Purchase Of Goods/Services - Contractors,Security Advisory,La International,197588,"10,412.55",Information Management Services,SME,Programme Expenditure
UK Statistics Family,Office for National Statistics,11/03/2021,Exp - Purchase Of Goods And Services Consultants,Security Operations,La International,197588,"6,407.76",Information Management Services,SME,Programme Expenditure
UK Statistics Family,Office for National Statistics,11/03/2021,Exp - Purchase Of Goods/Services - Contractors,Data Architecture,La International,197588,"3,588.30",Information Management Services,SME,Programme Expenditure
UK Statistics Family,Office for National Statistics,11/03/2021,Exp - Purchase Of Goods/Services - Contractors,Data Architecture,La International,197588,"3,524.22",Information Management Services,SME,Programme Expenditure
UK Statistics Family,Office for National Statistics,11/03/2021,Exp - Purchase Of Goods/Services - Contractors,Data Architecture,La International,197588,"3,588.30",Information Management Services,SME,Programme Expenditure
UK Statistics Family,Office for National Statistics,11/03/2021,Exp - Purchase Of Goods/Services - Contractors,Tech Delivery Legacy Sp,La International,197588,"3,524.22",Information Management Services,SME,Programme Expenditure
UK Statistics Family,Office for National Statistics,11/03/2021,Exp - Purchase Of Goods/Services - Contractors,Tech Delivery Legacy Sp,La International,197588,"3,524.22",Information Management Services,SME,Programme Expenditure
UK Statistics Family,Office for National Statistics,11/03/2021,Exp - Purchase Of Goods/Services - Contractors,Tech Delivery Data As A Platform,La International,197588,"6,407.76",Information Management Services,SME,Programme Expenditure
UK Statistics Family,Office for National Statistics,11/03/2021,Exp - Purchase Of Goods/Services - Contractors,Tech Delivery Data As A Platform,La International,197588,"14,353.20",Information Management Services,SME,Programme Expenditure
UK Statistics Family,Office for National Statistics,11/03/2021,Exp - Purchase Of Goods/Services - Contractors,Tech Delivery Data As A Platform,La International,197588,"14,353.20",Information Management Services,SME,Programme Expenditure
UK Statistics Family,Office for National Statistics,11/03/2021,Exp - Purchase Of Goods/Services - Contractors,IT Applications,La International,197588,"6,023.28",Information Management Services,SME,Programme Expenditure
UK Statistics Family,Office for National Statistics,11/03/2021,Exp - Purchase Of Goods/Services - Contractors,Digital Delivery,La International,197588,"13,456.26",Information Management Services,SME,Programme Expenditure
UK Statistics Family,Office for National Statistics,11/03/2021,Exp - Purchase Of Goods/Services - Contractors,Digital Delivery,La International,197588,"17,180.76",Information Management Services,SME,Programme Expenditure
UK Statistics Family,Office for National Statistics,11/03/2021,Exp - Purchase Of Goods/Services - Contractors,Digital Delivery,La International,197588,"15,378.48",Information Management Services,SME,Programme Expenditure
UK Statistics Family,Office for National Statistics,11/03/2021,Exp - Purchase Of Goods/Services - Contractors,Digital Delivery,La International,197588,"14,353.20",Information Management Services,SME,Programme Expenditure
UK Statistics Family,Office for National Statistics,11/03/2021,Exp - Purchase Of Goods/Services - Contractors,Digital Delivery,La International,197588,"16,506.18",Information Management Services,SME,Programme Expenditure
UK Statistics Family,Office for National Statistics,11/03/2021,Exp - Short-Term Contract & Agency Staff - Full Cost,Social Survey Transformation Titchfield,La International,197588,777,Information Management Services,SME,Programme Expenditure
UK Statistics Family,Office for National Statistics,11/03/2021,Stationery,Lodgecard,Royal Bank of Scotland,197590,898.12,Multiple Procurement Card Purchases  - Stationery ,Large,Programme Expenditure
UK Statistics Family,Office for National Statistics,11/03/2021,Other Goods And Services,GPC,Royal Bank of Scotland,197590,"51,064.24",Multiple Procurement Card Purchases - other goods/services  ,Large,Programme Expenditure
UK Statistics Family,Office for National Statistics,11/03/2021,Travel And Subsistence,Car Hire,Royal Bank of Scotland,197590,"3,291.25",Multiple Procurement Card Purchases - Vehicle Hire  ,Large,Programme Expenditure
UK Statistics Family,Office for National Statistics,11/03/2021,Survey Incentive Vouchers,Property Services,Gresham Office Furniture Limited,197594,"37,472.40",Office Furniture,SME,Programme Expenditure
UK Statistics Family,Office for National Statistics,11/03/2021,EXP - PURCHASE OF GOODS/SERVICES -  NON IT CONTRACTUAL PAYMENTS,Data Collection Service,HH Associates Ltd,197595,"6,821,835.08",Print and Post Services,SME,Programme Expenditure
UK Statistics Family,Office for National Statistics,11/03/2021,Telecoms,Census CCS Data Collection,Cdw Limited,197601,"9,960.00",Software Licenses,Large,Programme Expenditure
UK Statistics Family,Office for National Statistics,11/03/2021,Telecoms,IT Operations,Cdw Limited,197601,"34,042.80",Software Licenses,Large,Programme Expenditure
UK Statistics Family,Office for National Statistics,11/03/2021,Exp - Purchase Of Goods/Services - IT Contractual Services,Tech Delivery Legacy Sp,Armakuni Ltd,197604,"36,300.00",Information Management Services,SME,Programme Expenditure
UK Statistics Family,Office for National Statistics,12/03/2021,Buildings Under Construction,Property Newport,Central Roofing Ltd,197615,"122,096.66",Buildings Maintenance,SME,Programme Expenditure
UK Statistics Family,Office for National Statistics,12/03/2021,Capital Major Works >25K,Property Titchfield,Central Roofing Ltd,197615,"160,721.71",Buildings Maintenance,SME,Programme Expenditure
UK Statistics Family,Office for National Statistics,12/03/2021,Travel And Subsistence,CWT Trainline,Calder World of Travel,197616,"110,227.96",Multiple Venue Hire ,SME,Programme Expenditure
UK Statistics Family,Office for National Statistics,12/03/2021,Exp - Purchase Of Goods/Services - Contractors,Business Architecture,Parity Resources Limited,197627,"2,699.22",Information Management Services,Large,Programme Expenditure
UK Statistics Family,Office for National Statistics,12/03/2021,Exp - Purchase Of Goods/Services - Contractors,Testing,Parity Resources Limited,197627,"3,684.60",Information Management Services,Large,Programme Expenditure
UK Statistics Family,Office for National Statistics,12/03/2021,Exp - Short-Term Contract & Agency Staff - Full Cost,Census CCS Data Collection,Parity Resources Limited,197627,"1,571.76",Information Management Services,Large,Programme Expenditure
UK Statistics Family,Office for National Statistics,12/03/2021,Exp - Short-Term Contract & Agency Staff - Full Cost,Census CCS Data Collection,Parity Resources Limited,197627,594,Information Management Services,Large,Programme Expenditure
UK Statistics Family,Office for National Statistics,12/03/2021,Exp - Purchase Of Goods/Services - Contractors,Programme Delivery,Parity Resources Limited,197627,"3,524.40",Information Management Services,Large,Programme Expenditure
UK Statistics Family,Office for National Statistics,12/03/2021,Exp - Purchase Of Goods/Services - Contractors,Programme Delivery,Parity Resources Limited,197627,"3,310.50",Information Management Services,Large,Programme Expenditure
UK Statistics Family,Office for National Statistics,12/03/2021,Exp - Short-Term Contract & Agency Staff - Full Cost,Recruitment ,Parity Resources Limited,197627,"2,197.80",Information Management Services,Large,Programme Expenditure
UK Statistics Family,Office for National Statistics,12/03/2021,Exp - Purchase Of Goods/Services - Contractors,Security Advisory,Parity Resources Limited,197627,"7,433.28",Information Management Services,Large,Programme Expenditure
UK Statistics Family,Office for National Statistics,12/03/2021,Exp - Short-Term Contract & Agency Staff - Full Cost,Data Architecture,Parity Resources Limited,197627,"1,465.20",Information Management Services,Large,Programme Expenditure
UK Statistics Family,Office for National Statistics,12/03/2021,Exp - Purchase Of Goods/Services - Contractors,Data Architecture,Parity Resources Limited,197627,"3,592.56",Information Management Services,Large,Programme Expenditure
UK Statistics Family,Office for National Statistics,12/03/2021,Exp - Purchase Of Goods/Services - Contractors,IT Applications,Parity Resources Limited,197627,"3,588.48",Information Management Services,Large,Programme Expenditure
UK Statistics Family,Office for National Statistics,12/03/2021,Exp - Purchase Of Goods/Services - IT Contractual Services,IT Applications,Parity Resources Limited,197627,"2,723.40",Information Management Services,Large,Programme Expenditure
UK Statistics Family,Office for National Statistics,12/03/2021,Exp - Purchase Of Goods/Services - Contractors,Digital Delivery,Parity Resources Limited,197627,"3,588.48",Information Management Services,Large,Programme Expenditure
UK Statistics Family,Office for National Statistics,12/03/2021,Exp - Purchase Of Goods/Services - Contractors,Digital Delivery,Parity Resources Limited,197627,"3,588.48",Information Management Services,Large,Programme Expenditure
UK Statistics Family,Office for National Statistics,12/03/2021,Exp - Purchase Of Goods/Services - IT Contractual Services,Digital Delivery,Parity Resources Limited,197627,"2,883.60",Information Management Services,Large,Programme Expenditure
UK Statistics Family,Office for National Statistics,12/03/2021,Exp - Short-Term Contract & Agency Staff - Full Cost,Public Sector And Households,Parity Resources Limited,197627,"1,001.22",Information Management Services,Large,Programme Expenditure
UK Statistics Family,Office for National Statistics,12/03/2021,Exp - Purchase Of Goods/Services - Contractors,Data As A Service,Parity Resources Limited,197627,"3,588.48",Information Management Services,Large,Programme Expenditure
UK Statistics Family,Office for National Statistics,12/03/2021,Exp - Short-Term Contract & Agency Staff - Full Cost,Social Survey Transformation Titchfield,Parity Resources Limited,197627,892.08,Information Management Services,Large,Programme Expenditure
UK Statistics Family,Office for National Statistics,12/03/2021,Exp - Purchase Of Goods/Services - IT Contractual Services,IT Applications,Diegesis Limited,197628,"121,800.00",Information Management Services,Large,Programme Expenditure
UK Statistics Family,Office for National Statistics,12/03/2021,Marketing & Media,Stakeholder Engagement And Comms,Family & Education / iChild,197633,"42,882.00",Marketing Services,SME,Programme Expenditure
UK Statistics Family,Office for National Statistics,15/03/2021,"ICT Outsourcing, Maintenance And Support",Researcher Support And Data Access ,Equiniti-TopLevel,197759,"53,352.00",Information Management Services,SME,Programme Expenditure
UK Statistics Family,Office for National Statistics,15/03/2021,EXP - PURCHASE OF GOODS/SERVICES -  NON IT CONTRACTUAL PAYMENTS,Data Collection Service,HH Associates Ltd,197760,"3,164,986.01",Print and Post Services,SME,Programme Expenditure
UK Statistics Family,Office for National Statistics,15/03/2021,EXP - PURCHASE OF GOODS/SERVICES -  NON IT CONTRACTUAL PAYMENTS,Covid Infection Survey,HH Associates Ltd,197760,"22,099.82",Print and Post Services,SME,Programme Expenditure
UK Statistics Family,Office for National Statistics,15/03/2021,Exp - Purchase Of Goods/Services - Contractors,Business Architecture,Parity Resources Limited,197766,"9,356.58",Information Management Services,Large,Programme Expenditure
UK Statistics Family,Office for National Statistics,15/03/2021,Exp - Purchase Of Goods/Services - Contractors,Testing,Parity Resources Limited,197766,"14,400.00",Information Management Services,Large,Programme Expenditure
UK Statistics Family,Office for National Statistics,15/03/2021,Exp - Short-Term Contract & Agency Staff - Full Cost,Census CCS Data Collection,Parity Resources Limited,197766,785.88,Information Management Services,Large,Programme Expenditure
UK Statistics Family,Office for National Statistics,15/03/2021,Exp - Short-Term Contract & Agency Staff - Full Cost,Census CCS Data Collection,Parity Resources Limited,197766,"1,782.00",Information Management Services,Large,Programme Expenditure
UK Statistics Family,Office for National Statistics,15/03/2021,Exp - Short-Term Contract & Agency Staff - Full Cost,Census CCS Data Collection,Parity Resources Limited,197766,716.76,Information Management Services,Large,Programme Expenditure
UK Statistics Family,Office for National Statistics,15/03/2021,Exp - Purchase Of Goods/Services - Contractors,Programme Delivery,Parity Resources Limited,197766,"13,242.00",Information Management Services,Large,Programme Expenditure
UK Statistics Family,Office for National Statistics,15/03/2021,Exp - Purchase Of Goods/Services - Contractors,Programme Support,Parity Resources Limited,197766,"2,993.80",Information Management Services,Large,Programme Expenditure
UK Statistics Family,Office for National Statistics,15/03/2021,Exp - Purchase Of Goods/Services - Contractors,Covid Infection Survey,Parity Resources Limited,197766,"6,000.00",Information Management Services,Large,Programme Expenditure
UK Statistics Family,Office for National Statistics,15/03/2021,Exp - Short-Term Contract & Agency Staff - Full Cost,International Trade And Transactions,Parity Resources Limited,197766,784.74,Information Management Services,Large,Programme Expenditure
UK Statistics Family,Office for National Statistics,15/03/2021,Exp - Purchase Of Goods/Services - Contractors,Researcher Support And Data Access ,Parity Resources Limited,197766,"5,414.80",Information Management Services,Large,Programme Expenditure
UK Statistics Family,Office for National Statistics,15/03/2021,Exp - Short-Term Contract & Agency Staff - Full Cost,Recruitment ,Parity Resources Limited,197766,732.6,Information Management Services,Large,Programme Expenditure
UK Statistics Family,Office for National Statistics,15/03/2021,Exp - Purchase Of Goods/Services - Contractors,Security Advisory,Parity Resources Limited,197766,"3,588.48",Information Management Services,Large,Programme Expenditure
UK Statistics Family,Office for National Statistics,15/03/2021,Exp - Short-Term Contract & Agency Staff - Full Cost,Data Architecture,Parity Resources Limited,197766,"5,791.50",Information Management Services,Large,Programme Expenditure
UK Statistics Family,Office for National Statistics,15/03/2021,Exp - Purchase Of Goods/Services - Contractors,Data Architecture,Parity Resources Limited,197766,"3,592.56",Information Management Services,Large,Programme Expenditure
UK Statistics Family,Office for National Statistics,15/03/2021,Exp - Purchase Of Goods/Services - Contractors,IT Applications,Parity Resources Limited,197766,"10,765.44",Information Management Services,Large,Programme Expenditure
UK Statistics Family,Office for National Statistics,15/03/2021,Exp - Purchase Of Goods/Services - IT Contractual Services,IT Applications,Parity Resources Limited,197766,"8,170.20",Information Management Services,Large,Programme Expenditure
UK Statistics Family,Office for National Statistics,15/03/2021,Exp - Purchase Of Goods/Services - Contractors,Digital Delivery,Parity Resources Limited,197766,"10,765.44",Information Management Services,Large,Programme Expenditure
UK Statistics Family,Office for National Statistics,15/03/2021,Exp - Purchase Of Goods/Services - Contractors,Digital Delivery,Parity Resources Limited,197766,"6,861.00",Information Management Services,Large,Programme Expenditure
UK Statistics Family,Office for National Statistics,15/03/2021,Exp - Purchase Of Goods/Services - Contractors,Digital Delivery,Parity Resources Limited,197766,"14,353.92",Information Management Services,Large,Programme Expenditure
UK Statistics Family,Office for National Statistics,15/03/2021,Exp - Purchase Of Goods/Services - Contractors,Digital Delivery,Parity Resources Limited,197766,"10,765.44",Information Management Services,Large,Programme Expenditure
UK Statistics Family,Office for National Statistics,15/03/2021,Exp - Purchase Of Goods/Services - Contractors,Digital Delivery,Parity Resources Limited,197766,"5,446.80",Information Management Services,Large,Programme Expenditure
UK Statistics Family,Office for National Statistics,15/03/2021,Exp - Purchase Of Goods/Services - IT Contractual Services,Digital Delivery,Parity Resources Limited,197766,"8,650.80",Information Management Services,Large,Programme Expenditure
UK Statistics Family,Office for National Statistics,15/03/2021,Exp - Purchase Of Goods/Services - Contractors,Data As A Service,Parity Resources Limited,197766,"8,253.50",Information Management Services,Large,Programme Expenditure
UK Statistics Family,Office for National Statistics,15/03/2021,Exp - Short-Term Contract & Agency Staff - Full Cost,Social Survey Transformation Titchfield,Parity Resources Limited,197766,"2,787.76",Information Management Services,Large,Programme Expenditure
UK Statistics Family,Office for National Statistics,15/03/2021,EXP - PURCHASE OF GOODS/SERVICES -  NON IT CONTRACTUAL PAYMENTS,Data Collection Service,M&C Saatchi UK Ltd,197767,"171,010.73",Marketing Services,Large,Programme Expenditure
UK Statistics Family,Office for National Statistics,15/03/2021,EXP - PURCHASE OF GOODS/SERVICES -  NON IT CONTRACTUAL PAYMENTS,Divisional Management,Family & Education / iChild,197769,"33,328.80",Marketing Services,SME,Programme Expenditure
UK Statistics Family,Office for National Statistics,16/03/2021,Exp - Purchase Of Goods/Services - IT Contractual Services,CLOUD ARCHITECTURE,E Synergy Solutions,197858,"14,400.00",Information Management Services,SME,Programme Expenditure
UK Statistics Family,Office for National Statistics,16/03/2021,Exp - Purchase Of Goods/Services - IT Contractual Services,Strategy And Architecture,E Synergy Solutions,197858,"18,000.00",Information Management Services,SME,Programme Expenditure
UK Statistics Family,Office for National Statistics,16/03/2021,Exp - Purchase Of Goods/Services - IT Contractual Services,Strategy And Architecture,E Synergy Solutions,197858,"13,800.00",Information Management Services,SME,Programme Expenditure
UK Statistics Family,Office for National Statistics,16/03/2021,Exp - Purchase Of Goods/Services - IT Contractual Services,Tech Delivery Legacy Sp,E Synergy Solutions,197858,"78,840.00",Information Management Services,SME,Programme Expenditure
UK Statistics Family,Office for National Statistics,16/03/2021,Exp - Purchase Of Goods/Services - IT Contractual Services,Tech Delivery Next Gen IT And Infrastructure,E Synergy Solutions,197858,"28,800.00",Information Management Services,SME,Programme Expenditure
UK Statistics Family,Office for National Statistics,16/03/2021,Exp - Purchase Of Goods/Services - Contractors,Data Capability,La International,197870,"3,450.00",Information Management Services,SME,Programme Expenditure
UK Statistics Family,Office for National Statistics,16/03/2021,Exp - Purchase Of Goods/Services - Contractors,HALE,La International,197870,"5,793.00",Information Management Services,SME,Programme Expenditure
UK Statistics Family,Office for National Statistics,16/03/2021,Exp - Purchase Of Goods/Services - Contractors,Tech Delivery Legacy Sp,La International,197870,"14,096.88",Information Management Services,SME,Programme Expenditure
UK Statistics Family,Office for National Statistics,16/03/2021,Exp - Purchase Of Goods/Services - Contractors,Digital Delivery,La International,197870,"4,485.42",Information Management Services,SME,Programme Expenditure
UK Statistics Family,Office for National Statistics,16/03/2021,EXP - PURCHASE OF GOODS/SERVICES -  NON IT CONTRACTUAL PAYMENTS,Senior Management Team Design,Gowling WLG (UK) LLP,197877,146.76,Consultancy,Large,Programme Expenditure
UK Statistics Family,Office for National Statistics,16/03/2021,Other Goods And Services,Commercial Services,Gowling WLG (UK) LLP,197877,"26,711.64",Consultancy,Large,Programme Expenditure
UK Statistics Family,Office for National Statistics,16/03/2021,Exp - Short-Term Contract & Agency Staff - Full Cost,Census CCS Data Collection,Malikshaw Interim & Executive,197878,"6,549.88",Information Management Services,SME,Programme Expenditure
UK Statistics Family,Office for National Statistics,16/03/2021,Exp - Short-Term Contract & Agency Staff - Full Cost,CENSUS PARTNERSHIPS AND ENGAGEMENT,Malikshaw Interim & Executive,197878,"3,274.94",Information Management Services,SME,Programme Expenditure
UK Statistics Family,Office for National Statistics,16/03/2021,Exp - Purchase Of Goods/Services - Contractors,Tech Delivery Legacy Sp,Malikshaw Interim & Executive,197878,"14,400.00",Information Management Services,SME,Programme Expenditure
UK Statistics Family,Office for National Statistics,16/03/2021,Exp - Purchase Of Goods/Services - Contractors,Digital Delivery,Malikshaw Interim & Executive,197878,"13,751.52",Information Management Services,SME,Programme Expenditure
UK Statistics Family,Office for National Statistics,16/03/2021,Exp - Purchase Of Goods/Services - Contractors,Data Science Campus,Malikshaw Interim & Executive,197878,"3,636.00",Information Management Services,SME,Programme Expenditure
UK Statistics Family,Office for National Statistics,16/03/2021,Exp - Purchase Of Goods/Services - Contractors,Data Science Campus,Malikshaw Interim & Executive,197878,"8,484.00",Information Management Services,SME,Programme Expenditure
UK Statistics Family,Office for National Statistics,16/03/2021,EXP - PURCHASE OF GOODS/SERVICES -  NON IT CONTRACTUAL PAYMENTS,Data Collection Service,Serco Ltd,197879,"1,229,493.41",Census Contact Centre,Large,Programme Expenditure
UK Statistics Family,Office for National Statistics,16/03/2021,Training & Development,Learning And Capability,Synergy Learning,197881,"45,600.00",Training and Educational Services,SME,Programme Expenditure
UK Statistics Family,Office for National Statistics,16/03/2021,Exp - Purchase Of Goods/Services - IT Contractual Services,IT Operations,Methods Business & Digital Technology Ltd,197883,"39,825.00",Information Management Services,Large,Programme Expenditure
UK Statistics Family,Office for National Statistics,16/03/2021,Exp - Short-Term Contract & Agency Staff - Full Cost,Census CCS Data Collection,Talent International,197884,"1,592.12",Information Management Services,SME,Programme Expenditure
UK Statistics Family,Office for National Statistics,16/03/2021,Exp - Short-Term Contract & Agency Staff - Full Cost,Census CCS Data Collection,Talent International,197884,737.48,Information Management Services,SME,Programme Expenditure
UK Statistics Family,Office for National Statistics,16/03/2021,Exp - Purchase Of Goods/Services - Contractors,CDIO UNGP,Talent International,197884,"34,499.72",Information Management Services,SME,Programme Expenditure
UK Statistics Family,Office for National Statistics,16/03/2021,Exp - Purchase Of Goods/Services - Contractors,Strategy And Architecture,Talent International,197884,"12,000.00",Information Management Services,SME,Programme Expenditure
UK Statistics Family,Office for National Statistics,16/03/2021,Exp - Purchase Of Goods/Services - Contractors,Testing,Parity Resources Limited,197885,"11,053.80",Information Management Services,Large,Programme Expenditure
UK Statistics Family,Office for National Statistics,16/03/2021,Exp - Purchase Of Goods/Services - Contractors,Programme Delivery,Parity Resources Limited,197885,"13,873.20",Information Management Services,Large,Programme Expenditure
UK Statistics Family,Office for National Statistics,16/03/2021,Exp - Purchase Of Goods/Services - Contractors,Consultancy Management,Parity Resources Limited,197885,"12,000.00",Information Management Services,Large,Programme Expenditure
UK Statistics Family,Office for National Statistics,16/03/2021,Exp - Purchase Of Goods/Services - Contractors,Portfolio Delivery,Parity Resources Limited,197885,"6,250.96",Information Management Services,Large,Programme Expenditure
UK Statistics Family,Office for National Statistics,16/03/2021,Exp - Purchase Of Goods/Services - Contractors,Commercial Services,Parity Resources Limited,197885,"13,745.16",Information Management Services,Large,Programme Expenditure
UK Statistics Family,Office for National Statistics,16/03/2021,Exp - Short-Term Contract & Agency Staff - Full Cost,Recruitment ,Parity Resources Limited,197885,"2,197.80",Information Management Services,Large,Programme Expenditure
UK Statistics Family,Office for National Statistics,16/03/2021,Exp - Purchase Of Goods/Services - Contractors,Security Advisory,Parity Resources Limited,197885,"18,711.36",Information Management Services,Large,Programme Expenditure
UK Statistics Family,Office for National Statistics,16/03/2021,Exp - Short-Term Contract & Agency Staff - Full Cost,Digital Delivery,Parity Resources Limited,197885,"1,231.92",Information Management Services,Large,Programme Expenditure
UK Statistics Family,Office for National Statistics,16/03/2021,EXP - PURCHASE OF GOODS/SERVICES -  NON IT CONTRACTUAL PAYMENTS,Data Collection Service,Good Things Foundation,197891,"454,304.40",Census Assisted Digital Services,SME,Programme Expenditure
UK Statistics Family,Office for National Statistics,17/03/2021,Exp - Purchase Of Goods/Services - IT Contractual Services,Strategy And Architecture,CSC Computer Sciences,197896,"84,000.00",Information Management Services,Large,Programme Expenditure
UK Statistics Family,Office for National Statistics,17/03/2021,Specialist User Software And Hardware,CDIO UNGP,denodo,197905,"79,002.74",Software Licenses,SME,Programme Expenditure
UK Statistics Family,Office for National Statistics,17/03/2021,Exp - Purchase Of Goods/Services - IT Contractual Services,IT Operations,E Synergy Solutions,197909,"102,325.99",Information Management Services,SME,Programme Expenditure
UK Statistics Family,Office for National Statistics,17/03/2021,FM Contract Payments,FM Payments,Vinci Construction UK Limited,197910,"114,953.66",Facilities Mangement Services,Large,Programme Expenditure
UK Statistics Family,Office for National Statistics,17/03/2021,Exp - Purchase Of Goods/Services - Contractors,IT Applications,Empiric Solutions Limited,197911,"38,400.00",Information Management Services,Large,Programme Expenditure
UK Statistics Family,Office for National Statistics,17/03/2021,Exp - Short-Term Contract & Agency Staff - Full Cost,Stakeholder Engagement And Comms,Concept Information Technology Ltd T/A Concept Resourcing,197912,"3,099.29",Information Management Services,Large,Programme Expenditure
UK Statistics Family,Office for National Statistics,17/03/2021,Exp - Short-Term Contract & Agency Staff - Full Cost,Census CCS Data Collection,Concept Information Technology Ltd T/A Concept Resourcing,197912,"2,371.30",Information Management Services,Large,Programme Expenditure
UK Statistics Family,Office for National Statistics,17/03/2021,Exp - Short-Term Contract & Agency Staff - Full Cost,International Trade And Transactions,Concept Information Technology Ltd T/A Concept Resourcing,197912,"15,829.48",Information Management Services,Large,Programme Expenditure
UK Statistics Family,Office for National Statistics,17/03/2021,Exp - Short-Term Contract & Agency Staff - Full Cost,International Trade And Transactions,Concept Information Technology Ltd T/A Concept Resourcing,197912,"4,976.46",Information Management Services,Large,Programme Expenditure
UK Statistics Family,Office for National Statistics,17/03/2021,Exp - Short-Term Contract & Agency Staff - Full Cost,Prices Division,Concept Information Technology Ltd T/A Concept Resourcing,197912,"3,771.08",Information Management Services,Large,Programme Expenditure
UK Statistics Family,Office for National Statistics,17/03/2021,Exp - Short-Term Contract & Agency Staff - Full Cost,Prices Division,Concept Information Technology Ltd T/A Concept Resourcing,197912,"3,585.19",Information Management Services,Large,Programme Expenditure
UK Statistics Family,Office for National Statistics,17/03/2021,Telecoms,IT Operations,Bt Global Services,197916,"47,707.24",Telephony Charges,Large,Programme Expenditure
UK Statistics Family,Office for National Statistics,17/03/2021,Exp - Purchase Of Goods/Services - Contractors,Business Architecture,Certes Computing Ltd,197920,"25,107.60",Information Management Services,SME,Programme Expenditure
UK Statistics Family,Office for National Statistics,18/03/2021,Exp - Short-Term Contract & Agency Staff - Full Cost,Stakeholder Engagement And Comms,La International,197929,"4,355.27",Information Management Services,SME,Programme Expenditure
UK Statistics Family,Office for National Statistics,18/03/2021,Exp - Purchase Of Goods/Services - Contractors,Business Architecture,La International,197929,"3,524.22",Information Management Services,SME,Programme Expenditure
UK Statistics Family,Office for National Statistics,18/03/2021,Exp - Purchase Of Goods/Services - Contractors,Business Architecture,La International,197929,"2,936.85",Information Management Services,SME,Programme Expenditure
UK Statistics Family,Office for National Statistics,18/03/2021,Exp - Purchase Of Goods/Services - Contractors,Testing,La International,197929,"25,214.22",Information Management Services,SME,Programme Expenditure
UK Statistics Family,Office for National Statistics,18/03/2021,Exp - Purchase Of Goods/Services - Contractors,Testing,La International,197929,"2,269.40",Information Management Services,SME,Programme Expenditure
UK Statistics Family,Office for National Statistics,18/03/2021,Exp - Purchase Of Goods/Services - Contractors,HALE,La International,197929,"2,896.50",Information Management Services,SME,Programme Expenditure
UK Statistics Family,Office for National Statistics,18/03/2021,Exp - Purchase Of Goods/Services - Contractors,Sustainability And Inequalities,La International,197929,"7,576.56",Information Management Services,SME,Programme Expenditure
UK Statistics Family,Office for National Statistics,18/03/2021,Exp - Purchase Of Goods And Services Consultants,Security Operations,La International,197929,"3,203.88",Information Management Services,SME,Programme Expenditure
UK Statistics Family,Office for National Statistics,18/03/2021,Exp - Purchase Of Goods/Services - Contractors,Data Architecture,La International,197929,"7,112.52",Information Management Services,SME,Programme Expenditure
UK Statistics Family,Office for National Statistics,18/03/2021,Exp - Purchase Of Goods/Services - Contractors,Data Architecture,La International,197929,"3,524.22",Information Management Services,SME,Programme Expenditure
UK Statistics Family,Office for National Statistics,18/03/2021,Exp - Purchase Of Goods/Services - Contractors,Data Architecture,La International,197929,"14,161.02",Information Management Services,SME,Programme Expenditure
UK Statistics Family,Office for National Statistics,18/03/2021,Exp - Purchase Of Goods/Services - Contractors,Tech Delivery Legacy Sp,La International,197929,"-2,114.53",Information Management Services,SME,Programme Expenditure
UK Statistics Family,Office for National Statistics,18/03/2021,Exp - Short-Term Contract & Agency Staff - Full Cost,Social Survey Transformation Titchfield,La International,197929,"1,601.21",Information Management Services,SME,Programme Expenditure
UK Statistics Family,Office for National Statistics,18/03/2021,Other Goods And Services,Business Change Support,Bank of England,197933,"200,000.00",Statistical Services,Large,Programme Expenditure
UK Statistics Family,Office for National Statistics,18/03/2021,Exp - Short-Term Contract & Agency Staff - Full Cost,Census CCS Data Collection,Malikshaw Interim & Executive,197935,"10,953.18",Information Management Services,SME,Programme Expenditure
UK Statistics Family,Office for National Statistics,18/03/2021,Exp - Purchase Of Goods/Services - Contractors,Portfolio Delivery,Malikshaw Interim & Executive,197935,"19,440.00",Information Management Services,SME,Programme Expenditure
UK Statistics Family,Office for National Statistics,18/03/2021,Hosting,IT Operations,CTS (Cloud Technology Solutions Ltd),197936,"209,837.47",DST Infrastructure Preparation,Large,Programme Expenditure
UK Statistics Family,Office for National Statistics,18/03/2021,EXP - PURCHASE OF GOODS/SERVICES -  NON IT CONTRACTUAL PAYMENTS,Census CCS Data Collection,Adecco UK Limited,197937,"234,801.60",Census People Services Contractual,SME,Programme Expenditure
UK Statistics Family,Office for National Statistics,18/03/2021,Exp - Purchase Of Goods/Services - IT Contractual Services,IT Operations,Methods Business & Digital Technology Ltd,197938,"46,080.00",Information Management Services,Large,Programme Expenditure
UK Statistics Family,Office for National Statistics,18/03/2021,Exp - Short-Term Contract & Agency Staff - Full Cost,Census CCS Data Collection,Talent International,197940,"14,995.94",Information Management Services,SME,Programme Expenditure
UK Statistics Family,Office for National Statistics,18/03/2021,Exp - Short-Term Contract & Agency Staff - Full Cost,Census CCS Data Collection,Talent International,197940,"1,152.47",Information Management Services,SME,Programme Expenditure
UK Statistics Family,Office for National Statistics,18/03/2021,Exp - Short-Term Contract & Agency Staff - Full Cost,Recruitment ,Talent International,197940,"2,949.94",Information Management Services,SME,Programme Expenditure
UK Statistics Family,Office for National Statistics,18/03/2021,Exp - Purchase Of Goods/Services - Contractors,IT Applications,Talent International,197940,"11,700.00",Information Management Services,SME,Programme Expenditure
UK Statistics Family,Office for National Statistics,18/03/2021,Exp - Short-Term Contract & Agency Staff - Full Cost,Social Surveys Division,Talent International,197940,"1,059.38",Information Management Services,SME,Programme Expenditure
UK Statistics Family,Office for National Statistics,18/03/2021,Exp - Purchase Of Goods/Services - Contractors,Business Architecture,LA FOSSE ASSOCIATES LIMITED,197942,"74,424.83",Information Management Services,Large,Programme Expenditure
UK Statistics Family,Office for National Statistics,18/03/2021,Exp - Purchase Of Goods/Services - Contractors,Business Architecture,LA FOSSE ASSOCIATES LIMITED,197942,"9,125.00",Information Management Services,Large,Programme Expenditure
UK Statistics Family,Office for National Statistics,18/03/2021,Exp - Purchase Of Goods/Services - Contractors,Testing,LA FOSSE ASSOCIATES LIMITED,197942,"6,000.00",Information Management Services,Large,Programme Expenditure
UK Statistics Family,Office for National Statistics,18/03/2021,Exp - Purchase Of Goods/Services - Contractors,Operations,LA FOSSE ASSOCIATES LIMITED,197942,"8,910.00",Information Management Services,Large,Programme Expenditure
UK Statistics Family,Office for National Statistics,18/03/2021,Exp - Purchase Of Goods/Services - Contractors,Consultancy Management,LA FOSSE ASSOCIATES LIMITED,197942,"17,520.00",Information Management Services,Large,Programme Expenditure
UK Statistics Family,Office for National Statistics,18/03/2021,Exp - Purchase Of Goods/Services - Contractors,Programme Support,LA FOSSE ASSOCIATES LIMITED,197942,"6,000.00",Information Management Services,Large,Programme Expenditure
UK Statistics Family,Office for National Statistics,18/03/2021,Exp - Purchase Of Goods/Services - Contractors,Digital Publishing,LA FOSSE ASSOCIATES LIMITED,197942,"3,600.00",Information Management Services,Large,Programme Expenditure
UK Statistics Family,Office for National Statistics,18/03/2021,Exp - Purchase Of Goods/Services - Contractors,Data Architecture,LA FOSSE ASSOCIATES LIMITED,197942,"8,100.00",Information Management Services,Large,Programme Expenditure
UK Statistics Family,Office for National Statistics,18/03/2021,Exp - Purchase Of Goods/Services - Contractors,Data Architecture,LA FOSSE ASSOCIATES LIMITED,197942,"10,350.00",Information Management Services,Large,Programme Expenditure
UK Statistics Family,Office for National Statistics,18/03/2021,Exp - Purchase Of Goods/Services - Contractors,CLOUD ARCHITECTURE,LA FOSSE ASSOCIATES LIMITED,197942,"3,600.00",Information Management Services,Large,Programme Expenditure
UK Statistics Family,Office for National Statistics,18/03/2021,Exp - Purchase Of Goods/Services - Contractors,Tech Delivery Legacy Sp,LA FOSSE ASSOCIATES LIMITED,197942,"3,600.00",Information Management Services,Large,Programme Expenditure
UK Statistics Family,Office for National Statistics,18/03/2021,Exp - Purchase Of Goods/Services - Contractors,Tech Delivery Legacy Sp,LA FOSSE ASSOCIATES LIMITED,197942,"7,200.00",Information Management Services,Large,Programme Expenditure
UK Statistics Family,Office for National Statistics,18/03/2021,Exp - Purchase Of Goods/Services - Contractors,Tech Delivery Legacy Sp,LA FOSSE ASSOCIATES LIMITED,197942,"3,600.00",Information Management Services,Large,Programme Expenditure
UK Statistics Family,Office for National Statistics,18/03/2021,Exp - Purchase Of Goods/Services - Contractors,IT Applications,LA FOSSE ASSOCIATES LIMITED,197942,"10,800.00",Information Management Services,Large,Programme Expenditure
UK Statistics Family,Office for National Statistics,18/03/2021,Exp - Purchase Of Goods/Services - Contractors,Business Statistics Transformation,LA FOSSE ASSOCIATES LIMITED,197942,"3,300.00",Information Management Services,Large,Programme Expenditure
UK Statistics Family,Office for National Statistics,18/03/2021,End User Software And Hardware,IT Operations,Insight Direct,197944,"134,767.66",Software Licenses,Large,Programme Expenditure
UK Statistics Family,Office for National Statistics,18/03/2021,Exp - Purchase Of Goods/Services - IT Contractual Services,Tech Delivery Next Gen IT And Infrastructure,Diegesis Limited,197947,"32,940.00",Information Management Services,Large,Programme Expenditure
UK Statistics Family,Office for National Statistics,18/03/2021,Exp - Purchase Of Goods/Services - IT Contractual Services,Tech Delivery Next Gen IT And Infrastructure,Diegesis Limited,197947,"53,940.00",Information Management Services,Large,Programme Expenditure
UK Statistics Family,Office for National Statistics,19/03/2021,Exp - Short-Term Contract & Agency Staff - Full Cost,Business Change Support,Concept Information Technology Ltd T/A Concept Resourcing,198084,"8,689.78",Information Management Services,Large,Programme Expenditure
UK Statistics Family,Office for National Statistics,19/03/2021,Exp - Short-Term Contract & Agency Staff - Full Cost,Business Change Support,Concept Information Technology Ltd T/A Concept Resourcing,198084,"17,076.23",Information Management Services,Large,Programme Expenditure
UK Statistics Family,Office for National Statistics,19/03/2021,Exp - Short-Term Contract & Agency Staff - Full Cost,Business Change Support,Concept Information Technology Ltd T/A Concept Resourcing,198084,"18,889.62",Information Management Services,Large,Programme Expenditure
UK Statistics Family,Office for National Statistics,19/03/2021,Exp - Short-Term Contract & Agency Staff - Full Cost,Business Change Support,Concept Information Technology Ltd T/A Concept Resourcing,198084,402.97,Information Management Services,Large,Programme Expenditure
UK Statistics Family,Office for National Statistics,19/03/2021,Exp - Short-Term Contract & Agency Staff - Full Cost,Business Change Support,Concept Information Technology Ltd T/A Concept Resourcing,198084,"4,029.74",Information Management Services,Large,Programme Expenditure
UK Statistics Family,Office for National Statistics,19/03/2021,Exp - Short-Term Contract & Agency Staff - Full Cost,Business Change Support,Concept Information Technology Ltd T/A Concept Resourcing,198084,"2,670.48",Information Management Services,Large,Programme Expenditure
UK Statistics Family,Office for National Statistics,19/03/2021,Exp - Purchase Of Goods/Services - Contractors,Business Architecture Transformation And Statistical Strategy,Concept Information Technology Ltd T/A Concept Resourcing,198084,"9,450.00",Information Management Services,Large,Programme Expenditure
UK Statistics Family,Office for National Statistics,19/03/2021,Exp - Short-Term Contract & Agency Staff - Full Cost,Business Statistics Transformation,Concept Information Technology Ltd T/A Concept Resourcing,198084,"8,432.42",Information Management Services,Large,Programme Expenditure
UK Statistics Family,Office for National Statistics,19/03/2021,Exp - Purchase Of Goods And Services Consultants,2023 CENSUS DATA TRANSFORMATION,University of Salford,198086,"150,000.00",Digitisation Services,Large,Programme Expenditure
UK Statistics Family,Office for National Statistics,19/03/2021,Exp - Purchase Of Goods And Services Consultants,Digital Publishing,La International,198087,"21,786.38",Information Management Services,SME,Programme Expenditure
UK Statistics Family,Office for National Statistics,19/03/2021,Exp - Purchase Of Goods/Services - Contractors,Tech Delivery Data As A Platform,La International,198087,"6,407.76",Information Management Services,SME,Programme Expenditure
UK Statistics Family,Office for National Statistics,19/03/2021,Exp - Purchase Of Goods/Services - Contractors,IT Applications,La International,198087,"2,883.48",Information Management Services,SME,Programme Expenditure
UK Statistics Family,Office for National Statistics,19/03/2021,Training & Development,Learning And Capability,Ernst & Young Llp,198089,"62,940.00",Training and Educational Services,Large,Programme Expenditure
UK Statistics Family,Office for National Statistics,19/03/2021,Exp - Short-Term Contract & Agency Staff - Full Cost,Data Architecture,Talent International,198098,589.99,Information Management Services,SME,Programme Expenditure
UK Statistics Family,Office for National Statistics,19/03/2021,Exp - Purchase Of Goods/Services - Contractors,Strategy And Architecture,Talent International,198098,"16,532.40",Information Management Services,SME,Programme Expenditure
UK Statistics Family,Office for National Statistics,19/03/2021,Exp - Purchase Of Goods/Services - Contractors,Tech Delivery Legacy Sp,Talent International,198098,"12,599.80",Information Management Services,SME,Programme Expenditure
UK Statistics Family,Office for National Statistics,19/03/2021,Exp - Purchase Of Goods/Services - Contractors,Tech Delivery Data As A Platform,Talent International,198098,"14,399.76",Information Management Services,SME,Programme Expenditure
UK Statistics Family,Office for National Statistics,19/03/2021,Exp - Purchase Of Goods/Services - Contractors,Tech Delivery Next Gen IT And Infrastructure,Talent International,198098,"15,839.74",Information Management Services,SME,Programme Expenditure
UK Statistics Family,Office for National Statistics,19/03/2021,Exp - Purchase Of Goods/Services - Contractors,Digital Delivery,Talent International,198098,"13,910.40",Information Management Services,SME,Programme Expenditure
UK Statistics Family,Office for National Statistics,19/03/2021,Marketing & Media,Stakeholder Engagement And Comms,M&C Saatchi UK Ltd,198101,"182,810.22",Marketing Services,Large,Programme Expenditure
UK Statistics Family,Office for National Statistics,19/03/2021,EXP - PURCHASE OF GOODS/SERVICES -  NON IT CONTRACTUAL PAYMENTS,Data Collection Service,HH Associates Ltd,198107,"3,806,226.89",Print and Post Services,SME,Programme Expenditure
UK Statistics Family,Office for National Statistics,22/03/2021,Marketing & Media,Stakeholder Engagement And Comms,Manning Gottlieb,198195,"109,704.80",Marketing Services,Large,Programme Expenditure
UK Statistics Family,Office for National Statistics,23/03/2021,EXP - PURCHASE OF GOODS/SERVICES -  NON IT CONTRACTUAL PAYMENTS,Census CCS Data Collection,Granby Marketing Services Ltd,198216,"822,559.97",Stoarage and Distribution Services,Large,Programme Expenditure
UK Statistics Family,Office for National Statistics,23/03/2021,Marketing & Media,Stakeholder Engagement And Comms,Manning Gottlieb,198217,"660,610.18",Marketing Services,Large,Programme Expenditure
UK Statistics Family,Office for National Statistics,23/03/2021,Exp - Purchase Of Goods/Services - IT Contractual Services,IT Operations,Methods Business & Digital Technology Ltd,198218,"71,070.00",Information Management Services,Large,Programme Expenditure
UK Statistics Family,Office for National Statistics,23/03/2021,Exp - Purchase Of Goods/Services - IT Contractual Services,Digital Delivery,Methods Business & Digital Technology Ltd,198218,"103,686.00",Information Management Services,Large,Programme Expenditure
UK Statistics Family,Office for National Statistics,23/03/2021,Prepayments - Titchfield Postage Meter,Postage,Pitney Bowes Ltd,198226,"27,152.85",Postage,Large,Programme Expenditure
UK Statistics Family,Office for National Statistics,23/03/2021,End User Software And Hardware,IT Operations,Akhter Computers PLC,198229,"36,996.00",Computers and Peripherals,SME,Programme Expenditure
UK Statistics Family,Office for National Statistics,23/03/2021,Exp - Purchase Of Goods/Services - IT Contractual Services,IT Operations,Methods Business & Digital Technology Ltd,198230,"76,200.00",Information Management Services,Large,Programme Expenditure
UK Statistics Family,Office for National Statistics,23/03/2021,EXP - PURCHASE OF GOODS/SERVICES -  NON IT CONTRACTUAL PAYMENTS,Covid Infection Survey,HH Associates Ltd,198235,"130,342.21",Print and Post Services,SME,Programme Expenditure
UK Statistics Family,Office for National Statistics,23/03/2021,EXP - PURCHASE OF GOODS/SERVICES -  NON IT CONTRACTUAL PAYMENTS,Data Collection Service,Good Things Foundation,198237,"454,304.40",Census Assisted Digital Services,SME,Programme Expenditure
UK Statistics Family,Office for National Statistics,24/03/2021,"ICT Outsourcing, Maintenance And Support",IT Operations,Oracle Corporation UK Ltd,198247,"41,718.59",Software Licenses,Large,Programme Expenditure
UK Statistics Family,Office for National Statistics,24/03/2021,Exp - Purchase Of Goods/Services - IT Contractual Services,Strategy And Architecture,Ibm United Kingdom Ltd,198251,"46,533.56",Information Management Services,Large,Programme Expenditure
UK Statistics Family,Office for National Statistics,24/03/2021,"ICT Outsourcing, Maintenance And Support",IT Operations,Boxxe,198253,"59,523.36",Software Licenses,SME,Programme Expenditure
UK Statistics Family,Office for National Statistics,24/03/2021,"ICT Outsourcing, Maintenance And Support",IT Operations,Boxxe,198253,"40,810.93",Software Licenses,SME,Programme Expenditure
UK Statistics Family,Office for National Statistics,24/03/2021,Exp - Purchase Of Goods/Services - Accommodation & Bldng Management - Health And Safety Fixed Fee,Census CCS Data Collection,Posturite (Uk) Ltd,198259,"320,455.12",Personal Protective Equipment,SME,Programme Expenditure
UK Statistics Family,Office for National Statistics,24/03/2021,"ICT Outsourcing, Maintenance And Support",Senior Management Team Design,Totalmobile Ltd,198262,"230,171.40",Information Management Services,SME,Programme Expenditure
UK Statistics Family,Office for National Statistics,24/03/2021,Other Goods And Services,Interviewer Support,Totalmobile Ltd,198262,"2,850.00",Information Management Services,SME,Programme Expenditure
UK Statistics Family,Office for National Statistics,24/03/2021,Exp - Purchase Of Goods And Services Consultants,Consultancy Management,Bloom Procurement Services Ltd,198266,"132,114.18",Consultancy,Large,Programme Expenditure
UK Statistics Family,Office for National Statistics,24/03/2021,Exp - Purchase Of Goods/Services - IT Contractual Services,IT Operations,Methods Business & Digital Technology Ltd,198268,"40,704.00",Information Management Services,Large,Programme Expenditure
UK Statistics Family,Office for National Statistics,25/03/2021,Hosting,IT Operations,Crown Hosting Data Centres Limited,198359,"73,483.90",Information Management Services,SME,Programme Expenditure
UK Statistics Family,Office for National Statistics,25/03/2021,Telecoms,IT Operations,Vodafone Corporate Ltd,198361,"1,800.00",Telephony Charges,Large,Programme Expenditure
UK Statistics Family,Office for National Statistics,25/03/2021,Telecoms,IT Operations,Vodafone Corporate Ltd,198361,"29,675.62",Telephony Charges,Large,Programme Expenditure
UK Statistics Family,Office for National Statistics,25/03/2021,Exp - Purchase Of Goods/Services - IT Contractual Services,Digital Publishing,Swirrl It Ltd,198362,"157,711.20",Information Management Services,SME,Programme Expenditure
UK Statistics Family,Office for National Statistics,25/03/2021,Exp - Purchase Of Goods/Services - Contractors,Business Architecture,La International,198370,"3,978.10",Information Management Services,SME,Programme Expenditure
UK Statistics Family,Office for National Statistics,25/03/2021,Exp - Purchase Of Goods/Services - Contractors,Testing,La International,198370,"26,431.68",Information Management Services,SME,Programme Expenditure
UK Statistics Family,Office for National Statistics,25/03/2021,Exp - Purchase Of Goods/Services - Contractors,Testing,La International,198370,"2,269.40",Information Management Services,SME,Programme Expenditure
UK Statistics Family,Office for National Statistics,25/03/2021,Exp - Short-Term Contract & Agency Staff - Full Cost,Census CCS Data Collection,La International,198370,"1,394.64",Information Management Services,SME,Programme Expenditure
UK Statistics Family,Office for National Statistics,25/03/2021,Exp - Purchase Of Goods/Services - Contractors,HALE,La International,198370,"2,896.50",Information Management Services,SME,Programme Expenditure
UK Statistics Family,Office for National Statistics,25/03/2021,Exp - Purchase Of Goods And Services Consultants,Security Operations,La International,198370,"3,203.88",Information Management Services,SME,Programme Expenditure
UK Statistics Family,Office for National Statistics,25/03/2021,Exp - Purchase Of Goods/Services - Contractors,Data Architecture,La International,198370,"7,112.52",Information Management Services,SME,Programme Expenditure
UK Statistics Family,Office for National Statistics,25/03/2021,Exp - Purchase Of Goods/Services - Contractors,Data Architecture,La International,198370,"3,524.22",Information Management Services,SME,Programme Expenditure
UK Statistics Family,Office for National Statistics,25/03/2021,Plant & Machinery At Cost - Additions,Survey Processing Centre,Computacenter (Uk) Limited,198373,"52,104.00",Computers and Peripherals,Large,Programme Expenditure
UK Statistics Family,Office for National Statistics,25/03/2021,Non IT Maintenance And Hire,Survey Processing Centre,Computacenter (Uk) Limited,198373,"27,335.62",Computers and Peripherals,Large,Programme Expenditure
UK Statistics Family,Office for National Statistics,25/03/2021,Recovery Of Secondee Costs,FAST STREAM RECHARGES - CABINET OFFICE,Cabinet Office,198376,"409,997.06",Fast Stream Recruitment,Large,Programme Expenditure
UK Statistics Family,Office for National Statistics,25/03/2021,Exp - Purchase Of Goods/Services - IT Contractual Services,Finance,Accenture (UK) Limited,198383,"138,911.26",Consultancy,SME,Programme Expenditure
UK Statistics Family,Office for National Statistics,25/03/2021,Marketing & Media,Stakeholder Engagement And Comms,Manning Gottlieb,198384,"1,454,176.72",Marketing Services,Large,Programme Expenditure
UK Statistics Family,Office for National Statistics,25/03/2021,Marketing & Media,Stakeholder Engagement And Comms,Manning Gottlieb,198384,"929,986.79",Marketing Services,Large,Programme Expenditure
UK Statistics Family,Office for National Statistics,25/03/2021,Marketing & Media,Stakeholder Engagement And Comms,Manning Gottlieb,198384,"370,491.86",Marketing Services,Large,Programme Expenditure
UK Statistics Family,Office for National Statistics,26/03/2021,Exp - Purchase Of Goods/Services - IT Contractual Services,Digital Publishing,Swirrl It Ltd,198464,"75,727.20",Information Management Services,SME,Programme Expenditure
UK Statistics Family,Office for National Statistics,26/03/2021,Exp - Purchase Of Goods/Services - IT Contractual Services,Digital Publishing,Swirrl It Ltd,198464,"92,248.80",Information Management Services,SME,Programme Expenditure
UK Statistics Family,Office for National Statistics,26/03/2021,Exp - Purchase Of Goods And Services Consultants,Consultancy Management,Deloitte,198470,"59,304.00",Consultancy,Large,Programme Expenditure
UK Statistics Family,Office for National Statistics,26/03/2021,Exp - Purchase Of Goods/Services - Contractors,DST Legacy,LA FOSSE ASSOCIATES LIMITED,198478,"6,075.00",Information Management Services,Large,Programme Expenditure
UK Statistics Family,Office for National Statistics,26/03/2021,Exp - Purchase Of Goods/Services - Contractors,Business Architecture,LA FOSSE ASSOCIATES LIMITED,198478,"25,889.94",Information Management Services,Large,Programme Expenditure
UK Statistics Family,Office for National Statistics,26/03/2021,Exp - Purchase Of Goods/Services - Contractors,Business Architecture,LA FOSSE ASSOCIATES LIMITED,198478,"6,375.00",Information Management Services,Large,Programme Expenditure
UK Statistics Family,Office for National Statistics,26/03/2021,Exp - Purchase Of Goods/Services - Contractors,Testing,LA FOSSE ASSOCIATES LIMITED,198478,"3,000.00",Information Management Services,Large,Programme Expenditure
UK Statistics Family,Office for National Statistics,26/03/2021,Exp - Purchase Of Goods/Services - Contractors,Consultancy Management,LA FOSSE ASSOCIATES LIMITED,198478,"6,450.00",Information Management Services,Large,Programme Expenditure
UK Statistics Family,Office for National Statistics,26/03/2021,Exp - Purchase Of Goods/Services - Contractors,Programme Support,LA FOSSE ASSOCIATES LIMITED,198478,"3,000.00",Information Management Services,Large,Programme Expenditure
UK Statistics Family,Office for National Statistics,26/03/2021,Exp - Purchase Of Goods/Services - Contractors,Digital Publishing,LA FOSSE ASSOCIATES LIMITED,198478,"13,050.00",Information Management Services,Large,Programme Expenditure
UK Statistics Family,Office for National Statistics,26/03/2021,Exp - Purchase Of Goods/Services - Contractors,Data Architecture,LA FOSSE ASSOCIATES LIMITED,198478,"3,450.00",Information Management Services,Large,Programme Expenditure
UK Statistics Family,Office for National Statistics,26/03/2021,Exp - Purchase Of Goods/Services - Contractors,Tech Delivery Legacy Sp,LA FOSSE ASSOCIATES LIMITED,198478,"3,600.00",Information Management Services,Large,Programme Expenditure
UK Statistics Family,Office for National Statistics,29/03/2021,Training & Development,Portfolio Delivery,Kpmg Llp,198547,"14,837.20",Training and Educational Services,SME,Programme Expenditure
UK Statistics Family,Office for National Statistics,29/03/2021,Training & Development,Office Of Chief Data And Information,Kpmg Llp,198547,"18,482.00",Training and Educational Services,SME,Programme Expenditure
UK Statistics Family,Office for National Statistics,29/03/2021,Buildings Under Construction,Property Newport,Vinci Construction UK Limited,198548,"334,960.38",Facilities Mangement Services,Large,Programme Expenditure
UK Statistics Family,Office for National Statistics,29/03/2021,Buildings Under Construction,Property Newport,Vinci Construction UK Limited,198548,"34,839.68",Facilities Mangement Services,Large,Programme Expenditure
UK Statistics Family,Office for National Statistics,29/03/2021,FM Contract Payments,FM Payments,Vinci Construction UK Limited,198548,"274,241.44",Facilities Mangement Services,Large,Programme Expenditure
UK Statistics Family,Office for National Statistics,29/03/2021,Exp - Purchase Of Goods/Services - Contractors,Stakeholder Engagement And Comms,Hays,198549,"25,200.00",Information Management Services,Large,Programme Expenditure
UK Statistics Family,Office for National Statistics,29/03/2021,Exp - Purchase Of Goods/Services - Contractors,Tech Delivery Data As A Platform,Hays,198549,"2,880.00",Information Management Services,Large,Programme Expenditure
UK Statistics Family,Office for National Statistics,29/03/2021,Telecoms,IT Operations,Bt Global Services,198551,"47,707.24",Telephony Charges,Large,Programme Expenditure
UK Statistics Family,Office for National Statistics,29/03/2021,End User Software And Hardware,IT Operations,Phoenix Software Ltd,198555,"57,678.00",Software Licenses,SME,Programme Expenditure
UK Statistics Family,Office for National Statistics,29/03/2021,Postage,Survey Processing Centre,DHL Parcel Ltd,198556,"26,809.94",Courier Services,Large,Programme Expenditure
UK Statistics Family,Office for National Statistics,29/03/2021,Buildings Under Construction,Property Newport,Central Roofing Ltd,198557,"126,830.65",Buildings Maintenance,SME,Programme Expenditure
UK Statistics Family,Office for National Statistics,29/03/2021,Exp - Purchase Of Goods/Services - Contractors,Business Architecture,La International,198558,"3,273.26",Information Management Services,SME,Programme Expenditure
UK Statistics Family,Office for National Statistics,29/03/2021,Exp - Purchase Of Goods/Services - Contractors,Testing,La International,198558,"26,431.68",Information Management Services,SME,Programme Expenditure
UK Statistics Family,Office for National Statistics,29/03/2021,Exp - Purchase Of Goods/Services - Contractors,Testing,La International,198558,"2,269.40",Information Management Services,SME,Programme Expenditure
UK Statistics Family,Office for National Statistics,29/03/2021,Exp - Short-Term Contract & Agency Staff - Full Cost,Census CCS Data Collection,La International,198558,"1,019.16",Information Management Services,SME,Programme Expenditure
UK Statistics Family,Office for National Statistics,29/03/2021,Exp - Purchase Of Goods/Services - Contractors,HALE,La International,198558,"2,896.50",Information Management Services,SME,Programme Expenditure
UK Statistics Family,Office for National Statistics,29/03/2021,Exp - Purchase Of Goods/Services - Contractors,Sustainability And Inequalities,La International,198558,"5,051.04",Information Management Services,SME,Programme Expenditure
UK Statistics Family,Office for National Statistics,29/03/2021,EXP - PURCHASE OF GOODS/SERVICES -  NON IT CONTRACTUAL PAYMENTS,Productivity Research And Professional Development,La International,198558,"12,815.52",Information Management Services,SME,Programme Expenditure
UK Statistics Family,Office for National Statistics,29/03/2021,Exp - Purchase Of Goods/Services - Contractors,Data Architecture,La International,198558,"7,112.52",Information Management Services,SME,Programme Expenditure
UK Statistics Family,Office for National Statistics,29/03/2021,Exp - Purchase Of Goods/Services - Contractors,Data Architecture,La International,198558,"3,524.22",Information Management Services,SME,Programme Expenditure
UK Statistics Family,Office for National Statistics,29/03/2021,Exp - Purchase Of Goods/Services - Contractors,Data Architecture,La International,198558,"10,764.90",Information Management Services,SME,Programme Expenditure
UK Statistics Family,Office for National Statistics,29/03/2021,Exp - Purchase Of Goods/Services - Contractors,Data Architecture,La International,198558,"14,161.02",Information Management Services,SME,Programme Expenditure
UK Statistics Family,Office for National Statistics,29/03/2021,Exp - Purchase Of Goods/Services - Contractors,CLOUD ARCHITECTURE,La International,198558,"3,844.62",Information Management Services,SME,Programme Expenditure
UK Statistics Family,Office for National Statistics,29/03/2021,Exp - Purchase Of Goods/Services - Contractors,Tech Delivery Legacy Sp,La International,198558,"3,524.22",Information Management Services,SME,Programme Expenditure
UK Statistics Family,Office for National Statistics,29/03/2021,Exp - Purchase Of Goods/Services - Contractors,Tech Delivery Legacy Sp,La International,198558,"10,572.66",Information Management Services,SME,Programme Expenditure
UK Statistics Family,Office for National Statistics,29/03/2021,Exp - Purchase Of Goods/Services - Contractors,Tech Delivery Data As A Platform,La International,198558,"6,407.76",Information Management Services,SME,Programme Expenditure
UK Statistics Family,Office for National Statistics,29/03/2021,Exp - Purchase Of Goods/Services - Contractors,Tech Delivery Data As A Platform,La International,198558,"10,764.90",Information Management Services,SME,Programme Expenditure
UK Statistics Family,Office for National Statistics,29/03/2021,Exp - Purchase Of Goods/Services - Contractors,Tech Delivery Data As A Platform,La International,198558,"14,353.20",Information Management Services,SME,Programme Expenditure
UK Statistics Family,Office for National Statistics,29/03/2021,Exp - Purchase Of Goods/Services - Contractors,IT Applications,La International,198558,"17,236.82",Information Management Services,SME,Programme Expenditure
UK Statistics Family,Office for National Statistics,29/03/2021,Exp - Purchase Of Goods/Services - Contractors,Digital Delivery,La International,198558,"13,456.26",Information Management Services,SME,Programme Expenditure
UK Statistics Family,Office for National Statistics,29/03/2021,Exp - Short-Term Contract & Agency Staff - Full Cost,Social Survey Transformation Titchfield,La International,198558,777,Information Management Services,SME,Programme Expenditure
UK Statistics Family,Office for National Statistics,29/03/2021,Business Rates,Property Titchfield,Fareham Borough Council,198562,"412,160.00",Business Rates,Large,Programme Expenditure
UK Statistics Family,Office for National Statistics,29/03/2021,Business Rates,Property Christchurch,Christchurch Borough Council,198563,"124,416.00",Business Rates,Large,Programme Expenditure
UK Statistics Family,Office for National Statistics,29/03/2021,Surveys,International Trade And Transactions,Bureau Van Dijk Electronic Publishing,198569,"32,256.00",Statistical Services,SME,Programme Expenditure
UK Statistics Family,Office for National Statistics,29/03/2021,Exp - Purchase Of Goods/Services - IT Contractual Services,Strategy And Architecture,"Nomensa Ltd,",198572,"30,135.00",Information Management Services,Large,Programme Expenditure
UK Statistics Family,Office for National Statistics,29/03/2021,Surveys,Prices Division,Kantar UK Ltd,198573,"205,897.00",Statistical Services,Large,Programme Expenditure
UK Statistics Family,Office for National Statistics,29/03/2021,EXP - PURCHASE OF GOODS/SERVICES -  NON IT CONTRACTUAL PAYMENTS,Data Collection Service,Good Things Foundation,198574,"454,304.40",Census Assisted Digital Services,SME,Programme Expenditure
UK Statistics Family,Office for National Statistics,29/03/2021,Other Goods And Services,Beyond 2021 Research And Design,The Sensible Code Company,198581,"59,760.00",Statistical Services,SME,Programme Expenditure
UK Statistics Family,Office for National Statistics,29/03/2021,Exp - Purchase Of Goods/Services - IT Contractual Services,Tech Delivery Data As A Platform,Insight Direct,198587,"185,373.10",Information Management Services,Large,Programme Expenditure
UK Statistics Family,Office for National Statistics,29/03/2021,Telecoms,CLOUD ARCHITECTURE,North PB Ltd,198589,"35,809.82",Information Management Services,SME,Programme Expenditure
UK Statistics Family,Office for National Statistics,30/03/2021,Surveys,Covid Infection Survey,IQVIA Limited,198595,"512,950.42",Statistical Services,Large,Programme Expenditure
UK Statistics Family,Office for National Statistics,30/03/2021,Training & Development,Divisional Strategy And Support,Vanguard Cymru,198623,"9,600.00",Training and Educational Services,SME,Programme Expenditure
UK Statistics Family,Office for National Statistics,30/03/2021,"ICT Outsourcing, Maintenance And Support",Divisional Strategy And Support,Vanguard Cymru,198623,"19,200.00",Training and Educational Services,SME,Programme Expenditure
UK Statistics Family,Office for National Statistics,30/03/2021,Exp - Purchase Of Goods/Services - Contractors,Census Planning And Monitoring,SmartSourcing Ltd,198631,"14,400.00",Information Management Services,SME,Programme Expenditure
UK Statistics Family,Office for National Statistics,30/03/2021,Exp - Purchase Of Goods/Services - IT Contractual Services,CLOUD ARCHITECTURE,SmartSourcing Ltd,198631,"12,946.56",Information Management Services,SME,Programme Expenditure
UK Statistics Family,Office for National Statistics,31/03/2021,Buildings Under Construction,Property London,Vinci Construction UK Limited,198653,"31,635.60",Facilities Mangement Services,Large,Programme Expenditure
UK Statistics Family,Office for National Statistics,31/03/2021,Exp - Purchase Of Goods/Services - Training & Development - Seminar & Conference Fees,Business Architecture Transformation And Statistical Strategy,Oxford Said Business School,198657,"25,000.00",Training and Educational Services,SME,Programme Expenditure
UK Statistics Family,Office for National Statistics,31/03/2021,Exp - Purchase Of Goods/Services - Contractors,Digital Delivery,La International,198658,"7,176.60",Information Management Services,SME,Programme Expenditure
UK Statistics Family,Office for National Statistics,31/03/2021,Exp - Purchase Of Goods/Services - Contractors,Digital Delivery,La International,198658,"20,812.14",Information Management Services,SME,Programme Expenditure
UK Statistics Family,Office for National Statistics,31/03/2021,Exp - Purchase Of Goods And Services Consultants,Consultancy Management,Deloitte,198659,"37,593.60",Consultancy,Large,Programme Expenditure
UK Statistics Family,Office for National Statistics,31/03/2021,FM Contract Payments,Property Newport,Gresham Office Furniture Limited,198664,"5,073.00",Office Furniture,SME,Programme Expenditure
UK Statistics Family,Office for National Statistics,31/03/2021,FM Contract Payments,Property Newport,Gresham Office Furniture Limited,198664,"136,267.20",Office Furniture,SME,Programme Expenditure
UK Statistics Family,Office for National Statistics,31/03/2021,FM Contract Payments,Property Titchfield,Gresham Office Furniture Limited,198664,"71,760.00",Office Furniture,SME,Programme Expenditure
UK Statistics Family,Office for National Statistics,31/03/2021,Non IT Maintenance And Hire,Survey Processing Centre,Xerox UK Limited,198669,"38,027.90",Leasing of Devices,Large,Programme Expenditure
UK Statistics Family,Office for National Statistics,31/03/2021,Rent Payable,UKSA,Scotland Office,198673,"31,478.32",Rental Charges,Large,Programme Expenditure
UK Statistics Family,Office for National Statistics,01/03/2021,Survey Incentive Vouchers,Covid Infection Survey,Sodexo Motivation Solutions U.K. ltd,30002557,"1,372,205.08",Survey Response Incentive Vouchers,Large,Programme Expenditure
UK Statistics Family,Office for National Statistics,01/03/2021,Survey Incentive Vouchers,Covid Infection Survey,Sodexo Motivation Solutions U.K. ltd,30002558,"59,154.00",Survey Response Incentive Vouchers,Large,Programme Expenditure
UK Statistics Family,Office for National Statistics,03/03/2021,Survey Incentive Vouchers,Covid Infection Survey,Sodexo Motivation Solutions U.K. ltd,30002571,"116,810.00",Survey Response Incentive Vouchers,Large,Programme Expenditure
UK Statistics Family,Office for National Statistics,04/03/2021,Survey Incentive Vouchers,Covid Infection Survey,Sodexo Motivation Solutions U.K. ltd,30002572,"2,631,419.40",Survey Response Incentive Vouchers,Large,Programme Expenditure
UK Statistics Family,Office for National Statistics,04/03/2021,Surveys,Covid Infection Survey,IQVIA Limited,30002573,"27,855,240.00",Statistical Services,Large,Programme Expenditure
UK Statistics Family,Office for National Statistics,05/03/2021,Surveys,Covid Infection Survey,IQVIA Limited,30002574,"15,294,773.99",Statistical Services,Large,Programme Expenditure
UK Statistics Family,Office for National Statistics,06/03/2021,Hosting,IT Operations,Amazon Web Services Inc,30002586,"66,012.86",Information Management Services,Large,Programme Expenditure
UK Statistics Family,Office for National Statistics,08/03/2021,Surveys,Covid Infection Survey,IQVIA Limited,30002588,"591,651.77",Statistical Services,Large,Programme Expenditure
UK Statistics Family,Office for National Statistics,08/03/2021,Survey Incentive Vouchers,Covid Infection Survey,Sodexo Motivation Solutions U.K. ltd,30002589,"43,434.72",Survey Response Incentive Vouchers,Large,Programme Expenditure
UK Statistics Family,Office for National Statistics,09/03/2021,Survey Incentive Vouchers,Covid Infection Survey,Sodexo Motivation Solutions U.K. ltd,30002590,"110,330.62",Survey Response Incentive Vouchers,Large,Programme Expenditure
UK Statistics Family,Office for National Statistics,11/03/2021,Survey Incentive Vouchers,Covid Infection Survey,Sodexo Motivation Solutions U.K. ltd,30002594,"54,390.24",Survey Response Incentive Vouchers,Large,Programme Expenditure
UK Statistics Family,Office for National Statistics,12/03/2021,Survey Incentive Vouchers,Covid Infection Survey,Sodexo Motivation Solutions U.K. ltd,30002598,"101,044.44",Survey Response Incentive Vouchers,Large,Programme Expenditure
UK Statistics Family,Office for National Statistics,12/03/2021,Survey Incentive Vouchers,Covid Infection Survey,Sodexo Motivation Solutions U.K. ltd,30002599,"2,831,819.72",Survey Response Incentive Vouchers,Large,Programme Expenditure
UK Statistics Family,Office for National Statistics,12/03/2021,Survey Incentive Vouchers,Covid Infection Survey,Sodexo Motivation Solutions U.K. ltd,30002600,"121,792.80",Survey Response Incentive Vouchers,Large,Programme Expenditure
UK Statistics Family,Office for National Statistics,12/03/2021,Survey Incentive Vouchers,Covid Infection Survey,Sodexo Motivation Solutions U.K. ltd,30002601,"97,269.60",Survey Response Incentive Vouchers,Large,Programme Expenditure
UK Statistics Family,Office for National Statistics,16/03/2021,"ICT Outsourcing, Maintenance And Support",IT Operations,Pluralsight,30002612,"96,339.00",Software Licenses,Large,Programme Expenditure
UK Statistics Family,Office for National Statistics,17/03/2021,Survey Incentive Vouchers,Covid Infection Survey,Sodexo Motivation Solutions U.K. ltd,30002615,"66,720.00",Survey Response Incentive Vouchers,Large,Programme Expenditure
UK Statistics Family,Office for National Statistics,17/03/2021,Exp - Purchase Of Goods/Services - Incentive Payments,Covid Infection Survey,Sodexo Motivation Solutions U.K. ltd,30002615,"-19,962.00",Survey Response Incentive Vouchers,Large,Programme Expenditure
UK Statistics Family,Office for National Statistics,19/03/2021,Survey Incentive Vouchers,Covid Infection Survey,Sodexo Motivation Solutions U.K. ltd,30002616,"2,911,870.48",Survey Response Incentive Vouchers,Large,Programme Expenditure
UK Statistics Family,Office for National Statistics,19/03/2021,Survey Incentive Vouchers,Covid Infection Survey,Sodexo Motivation Solutions U.K. ltd,30002617,"34,258.57",Survey Response Incentive Vouchers,Large,Programme Expenditure
UK Statistics Family,Office for National Statistics,19/03/2021,PAYE,Census payroll,HM Revenue & Customs,30002619,"915,992.17",PAYE due,Large,Programme Expenditure
UK Statistics Family,Office for National Statistics,23/03/2021,Survey Incentive Vouchers,Covid Infection Survey,Sodexo Motivation Solutions U.K. ltd,30002621,"46,525.92",Survey Response Incentive Vouchers,Large,Programme Expenditure
UK Statistics Family,Office for National Statistics,23/03/2021,Survey Incentive Vouchers,Covid Infection Survey,Sodexo Motivation Solutions U.K. ltd,30002622,"38,481.60",Survey Response Incentive Vouchers,Large,Programme Expenditure
UK Statistics Family,Office for National Statistics,23/03/2021,Other Professional Services,Policy Secretariat,Government Legal Department,30002623,"46,000.00",Legal Services,Large,Programme Expenditure
UK Statistics Family,Office for National Statistics,24/03/2021,Survey Incentive Vouchers,Covid Infection Survey,Sodexo Motivation Solutions U.K. ltd,30002625,"35,724.00",Survey Response Incentive Vouchers,Large,Programme Expenditure
UK Statistics Family,Office for National Statistics,24/03/2021,Survey Incentive Vouchers,Covid Infection Survey,Sodexo Motivation Solutions U.K. ltd,30002626,"34,692.00",Survey Response Incentive Vouchers,Large,Programme Expenditure
UK Statistics Family,Office for National Statistics,24/03/2021,Survey Incentive Vouchers,Covid Infection Survey,Sodexo Motivation Solutions U.K. ltd,30002627,"35,076.00",Survey Response Incentive Vouchers,Large,Programme Expenditure
UK Statistics Family,Office for National Statistics,24/03/2021,Survey Incentive Vouchers,Covid Infection Survey,Sodexo Motivation Solutions U.K. ltd,30002628,"34,644.00",Survey Response Incentive Vouchers,Large,Programme Expenditure
UK Statistics Family,Office for National Statistics,26/03/2021,Surveys,Covid Infection Survey,IQVIA Limited,30002630,"28,272,987.60",Statistical Services,Large,Programme Expenditure
UK Statistics Family,Office for National Statistics,26/03/2021,Survey Incentive Vouchers,Covid Infection Survey,Sodexo Motivation Solutions U.K. ltd,30002632,"2,330,305.24",Survey Response Incentive Vouchers,Large,Programme Expenditure
UK Statistics Family,Office for National Statistics,30/03/2021,Travel And Subsistence,CWT Trainline,Calder World of Travel,30002634,"403,923.89",Multiple Venue Hire ,SME,Programme Expenditure
UK Statistics Family,Office for National Statistics,30/03/2021,Survey Incentive Vouchers,Covid Infection Survey,Sodexo Motivation Solutions U.K. ltd,30002635,"35,560.80",Survey Response Incentive Vouchers,Large,Programme Expenditure
UK Statistics Family,Office for National Statistics,30/03/2021,Capital Major Works >25K,Property Newport,Vinci Construction UK Limited,30002636,"41,187.02",Facilities Mangement Services,Large,Programme Expenditure
UK Statistics Family,Office for National Statistics,30/03/2021,Capital Major Works >25K,Property Titchfield,Vinci Construction UK Limited,30002636,"62,306.40",Facilities Mangement Services,Large,Programme Expenditure
UK Statistics Family,Office for National Statistics,30/03/2021,Buildings Under Construction,Property Titchfield,Sure Connect Systems Ltd,30002637,"135,404.88",Buildings Maintenance,Large,Programme Expenditure
UK Statistics Family,Office for National Statistics,30/03/2021,Exp - Purchase Of Goods/Services - IT Contractual Services,IT Operations,Methods Business & Digital Technology Ltd,30002638,"59,712.00",Information Management Services,Large,Programme Expenditure
UK Statistics Family,Office for National Statistics,30/03/2021,Exp - Purchase Of Goods/Services - IT Contractual Services,Digital Delivery,Equal Experts UK Ltd,30002639,"133,473.60",Information Management Services,Large,Programme Expenditure
UK Statistics Family,Office for National Statistics,30/03/2021,Postage,Survey Processing Centre,DHL Parcel Ltd,30002640,"103,583.43",Courier Services,Large,Programme Expenditure
UK Statistics Family,Office for National Statistics,31/03/2021,Survey Incentive Vouchers,Covid Infection Survey,Sodexo Motivation Solutions U.K. ltd,30002641,"91,317.36",Survey Response Incentive Vouchers,Large,Programme Expenditure
UK Statistics Family,Office for National Statistics,31/03/2021,Surveys,Covid Infection Survey,IQVIA Limited,30002643,"12,887,800.21",Statistical Services,Large,Programme Expenditure
UK Statistics Family,Office for National Statistics,31/03/2021,Exp - Purchase Of Goods/Services - IT Contractual Services,Digital Publishing,Methods Business & Digital Technology Ltd,30002644,"81,744.00",Information Management Services,Large,Programme Expenditure
UK Statistics Family,Office for National Statistics,31/03/2021,Exp - Purchase Of Goods/Services - IT Contractual Services,IT Operations,Methods Business & Digital Technology Ltd,30002644,"8,400.00",Information Management Services,Large,Programme Expenditure
UK Statistics Family,Office for National Statistics,31/03/2021,IT (Owned) At Cost - Additions,IT Operations,Insight Direct,30002645,"149,924.55",Information Management Services,Large,Programme Expenditure
UK Statistics Family,Office for National Statistics,31/03/2021,"ICT Outsourcing, Maintenance And Support",IT Operations,Insight Direct,30002645,"163,365.99",Information Management Services,Large,Programme Expenditure
UK Statistics Family,Office for National Statistics,31/03/2021,Capitalised Specialist Contractors IT,Tech Delivery Data As A Platform,Kainos,30002646,"77,536.00",Information Management Services,Large,Programme Expenditure
UK Statistics Family,Office for National Statistics,31/03/2021,Hosting,Tech Delivery Data As A Platform,Kainos,30002646,"3,093.73",Information Management Services,Large,Programme Expenditure
UK Statistics Family,Office for National Statistics,31/03/2021,"ICT Outsourcing, Maintenance And Support",Researcher Support And Data Access ,Equiniti Limited,30002647,"8,522.57",Information Management Services,Large,Programme Expenditure
UK Statistics Family,Office for National Statistics,31/03/2021,"ICT Outsourcing, Maintenance And Support",Researcher Support And Data Access ,Equiniti Limited,30002647,"14,378.72",Information Management Services,Large,Programme Expenditure
UK Statistics Family,Office for National Statistics,31/03/2021,"ICT Outsourcing, Maintenance And Support",Researcher Support And Data Access ,Equiniti Limited,30002647,"66,213.63",Information Management Services,Large,Programme Expenditure
UK Statistics Family,Office for National Statistics,31/03/2021,"ICT Outsourcing, Maintenance And Support",IT Operations,Equiniti Limited,30002647,"28,643.80",Information Management Services,Large,Programme Expenditure
UK Statistics Family,Office for National Statistics,31/03/2021,Hosting,IT Operations,Equiniti Limited,30002647,"49,459.05",Information Management Services,Large,Programme Expenditure
UK Statistics Family,Office for National Statistics,31/03/2021,EXP - PURCHASE OF GOODS/SERVICES -  NON IT CONTRACTUAL PAYMENTS,Census CCS Data Collection,Adecco UK Limited,30002648,"408,000.00",Census People Services Contractual,SME,Programme Expenditure
UK Statistics Family,Office for National Statistics,31/03/2021,Exp - Purchase Of Goods/Services - Contractors,Senior Management,Certes Computing Ltd,30002649,"15,372.00",Information Management Services,SME,Programme Expenditure
UK Statistics Family,Office for National Statistics,31/03/2021,Exp - Purchase Of Goods/Services - Contractors,Operations,Certes Computing Ltd,30002649,"15,372.00",Information Management Services,SME,Programme Expenditure
UK Statistics Family,Office for National Statistics,31/03/2021,Exp - Purchase Of Goods/Services - Contractors,Programme Delivery,Certes Computing Ltd,30002649,"12,489.29",Information Management Services,SME,Programme Expenditure
UK Statistics Family,Office for National Statistics,31/03/2021,Exp - Purchase Of Goods/Services - Contractors,Programme Delivery,Certes Computing Ltd,30002649,"12,810.00",Information Management Services,SME,Programme Expenditure
UK Statistics Family,Office for National Statistics,31/03/2021,Exp - Purchase Of Goods/Services - Contractors,Data Architecture,Certes Computing Ltd,30002649,"28,797.12",Information Management Services,SME,Programme Expenditure
UK Statistics Family,Office for National Statistics,31/03/2021,Exp - Purchase Of Goods/Services - Contractors,Strategy And Architecture,Certes Computing Ltd,30002649,"15,372.00",Information Management Services,SME,Programme Expenditure
UK Statistics Family,Office for National Statistics,31/03/2021,Exp - Purchase Of Goods/Services - Contractors,Strategy And Architecture,Certes Computing Ltd,30002649,"14,398.56",Information Management Services,SME,Programme Expenditure
UK Statistics Family,Office for National Statistics,31/03/2021,Exp - Purchase Of Goods/Services - Contractors,Tech Delivery Data As A Platform,Certes Computing Ltd,30002649,"14,398.56",Information Management Services,SME,Programme Expenditure
UK Statistics Family,Office for National Statistics,31/03/2021,Exp - Purchase Of Goods/Services - Contractors,IT Operations,Certes Computing Ltd,30002649,"6,880.44",Information Management Services,SME,Programme Expenditure
UK Statistics Family,Office for National Statistics,31/03/2021,Exp - Purchase Of Goods/Services - Contractors,Digital Delivery,Certes Computing Ltd,30002649,"13,678.63",Information Management Services,SME,Programme Expenditure
UK Statistics Family,Office for National Statistics,31/03/2021,Exp - Purchase Of Goods/Services - Contractors,Digital Delivery,Certes Computing Ltd,30002649,"28,821.60",Information Management Services,SME,Programme Expenditure
UK Statistics Family,Office for National Statistics,31/03/2021,Exp - Purchase Of Goods/Services - Contractors,Digital Delivery,Certes Computing Ltd,30002649,"13,562.70",Information Management Services,SME,Programme Expenditure
UK Statistics Family,Office for National Statistics,31/03/2021,End User Software And Hardware,Sustainability And Inequalities,Computacenter (Uk) Limited,30002650,"-4,840.49",Software Licenses,Large,Programme Expenditure
UK Statistics Family,Office for National Statistics,31/03/2021,"ICT Outsourcing, Maintenance And Support",IT Operations,Computacenter (Uk) Limited,30002650,"75,057.60",Software Licenses,Large,Programme Expenditure
UK Statistics Family,Office for National Statistics,31/03/2021,Specialist User Software And Hardware,IT Operations,Computacenter (Uk) Limited,30002650,"5,880.01",Software Licenses,Large,Programme Expenditure
UK Statistics Family,Office for National Statistics,31/03/2021,Hosting,IT Operations,CTS (Cloud Technology Solutions Ltd),30002651,"125,754.12",DST Infrastructure Preparation,Large,Programme Expenditure
UK Statistics Family,Office for National Statistics,31/03/2021,Exp - Purchase Of Goods/Services - IT Contractual Services,Digital Publishing,Armakuni Ltd,30002652,"61,560.00",Information Management Services,SME,Programme Expenditure
UK Statistics Family,Office for National Statistics,31/03/2021,Exp - Purchase Of Goods And Services Consultants,Consultancy Management,Bloom Procurement Services Ltd,30002653,"99,499.49",Consultancy,Large,Programme Expenditure
UK Statistics Family,Office for National Statistics,31/03/2021,Business Rates,Property Newport,Newport City Council,30002654,"1,027,200.00",Business Rates,Large,Programme Expenditure
,,,,,,Report Total,"146,687,997.06",,,
